{"text_format":"1","workbook":"xlsx","n_sheets":4,"sheets":["Quick Start","waybilldata","waybill front 1-2","waybill back 3-4"],"not_rendered":{"charts":0,"images":1,"macros":0,"external_links":1,"defined_names":62,"comments":0,"pivot_tables":0},"unopened":[],"bounds":{"document_bytes":16777216,"sheet_cells":100000,"rows_first":2000,"rows_last":500,"rows_between":2000,"halvings":0,"cell_chars":16384,"cell_head_chars":4096},"cells_cut":0,"cells_raw":0,"read":"whole","date_system":"1900"}

{"sheet":"Quick Start","index":0,"n_rows":27,"n_cols":2,"rows_kept":27,"cut":false,"hidden":false,"merged":[[9,10,9,16],[4,10,4,16],[5,10,5,16],[6,10,6,16],[7,10,7,16],[8,10,8,16],[0,0,0,7],[3,3,3,4],[3,6,3,7],[3,0,3,1],[4,3,4,4],[4,0,4,1],[4,6,4,7],[13,1,13,7],[14,1,14,7],[10,10,10,16],[11,1,11,7],[12,1,12,7],[5,1,5,7],[9,1,9,7],[10,1,10,7],[6,1,6,7],[7,1,7,7],[8,1,8,7],[15,1,15,7],[16,1,16,7],[26,1,26,7],[27,1,27,7],[21,1,21,7],[22,1,22,7],[23,1,23,7],[24,1,24,7],[25,1,25,7],[18,1,20,7],[17,1,17,7]]}
["QUICK START"]
[]
[]
[]
["Go to WAYBILLDATA tab:"]
[1,"Review car move examples shown on line numbers 1- 24"]
[2,"The file currently is set up to print up to 8 different color tabs across the top of each"]
[null,"waybill reflecting the \"next stop\" for the car.  The colors available are shown on"]
[null," the waybilldata tab above MOVE 3.  Modify the destination names to align with your railroad.  If you"]
[null," understand conditional formatting you can add more colors."]
[null,"NOTE: It is critical to use the COLOR NAME exactly as shown in the color block when"]
[null,"filling in the color field for each move Excel uses for the conditional formatting function."]
[null,"NOTE: If you choose to not have color bands, simply leave the color field blank."]
[3,"On the waybilldata tab, use your railroad's location names, industry names, car types, to generate a move"]
[null,"for a set of cars. SUGGESTION: Start with one industry and think about the flow of"]
[null,"raw material in and finished product out.  Where did it come from, where would it"]
[null,"logically go, what type of car would be used."]
[4,"With a set of car movements developed, go to the red box in the upper left corner.TYPE THE ORANGE LINE NO. FOR THE CAR CARD YOU WANT TO PRINT IN ANY ONE OF THE RED BOXES. THE NUMBERS TO NOT NEED TO BE SEQUENTIAL. WITH THE CARD CARDS SELECTED YOU WISH TO PRINT, GO TO THE waybill front & back TABS AND PRINT THEM."]
[5,"PRINTING - The moves you placed in the red box will now show on the waybill front & back tabs, ready to print.  HINT: save both the waybill front & back as ADOBE PDF files, then print both files with your printer set to print on both sides. Most printers will align the prints automatically, ready to cut out. I use 60lb paper for my car cards as they are very durable."]
[]
[]
[7,"Cut out each of the moves.  HINT: There are small lines outside the waybill area to help"]
[null,"make your cuts."]
[8,"The small number to the right of the lading line on moves 1 and 3 are the LINE NUMBER"]
[null,"the waybill came from on the WAYBILLDATA tab.  If you need to make changes to or"]
[null,"print a new copy of a given waybill, this number will take you to the line you need to work"]
[null,"with."]

{"sheet":"waybilldata","index":1,"n_rows":491,"n_cols":23,"rows_kept":491,"cut":false,"hidden":false,"merged":[[6,17,6,21],[6,2,6,6],[6,7,6,11],[6,12,6,16],[0,0,0,2],[1,0,1,2],[6,0,6,1]]}
[null,null,null,null,{"$f":"COUNTIF($H$10:$H$492,\"JUANITA\")","v":0},null,{"$f":"COUNTIF($H$10:$H$492,\"JUANITA\")","v":0}]
["Choose files for print (max 12)",null,null,"BOXCAR",{"$f":"COUNTIF($B$10:$B$491,\"BOXCAR\")","v":0},"GONDOLA",{"$f":"COUNTIF($B$10:$B$491,\"GONDOLA\")","v":0},null,null,"MOVE 1"]
[null,null,null,"HOPPER",{"$f":"COUNTIF($B$10:$B$491,\"HOPPER\")","v":0},"REEFER",{"$f":"COUNTIF($B$10:$B$491,\"REEFER\")","v":0},null,null,"MOVE 2"]
[null,null,null,"FLATCAR",{"$f":"COUNTIF($B$10:$B$491,\"FLATCAR\")","v":0},"STOCK",{"$f":"COUNTIF($B$10:$B$491,\"STOCK\")","v":0},null,null,"MOVE 3"]
[null,null,null,"COVERED HOPPER",{"$f":"COUNTIF($B$10:$B$491,\"COVERED HOPPER\")","v":0},"TANK",{"$f":"COUNTIF($B$10:$B$491,\"TANK\")","v":0},null,null,"MOVE 4"]
[null,null,null,"DROP GON",{"$f":"COUNTIF($B$10:$B$491,\"DROP GON\")","v":0},"TOTAL",{"$f":"SUM(G2:G5)+SUM(E2:E6)","v":0}]
[null,null,"MOVE 1",null,null,null,null,"MOVE 2",null,null,null,null,"MOVE 3",null,null,null,null,"MOVE 4"]
[null,2,3,4,5,"new 6","7 = old 6","8 = old 7","new 9","10 = old 8","11 = old 9","12 = old 10","13 =  old 11","new 14","15 = old 12","16 = old 13","17 = old 14","18 = old 15","new 19","20 = old 16","21 = old 17","22 = old 18"]
[" Nr.","AAR","TO: Location 1","Industry 1","Via 1","Car Number","Commodity 1","Via 2","Car Number","TO: Location 2","Industry 2","Commodity 2","Via 3","Car Number","TO: Location 3","Industry 3","Commodity 3","Via 4","Via-4 Color","TO: Location 4","Industry 4","Commodity 4","car number"]
[1,null,null,null,null,null,null,null,{"$f":"F10","v":0},null,null,null,null,{"$f":"F10","v":0},null,null,null,null,null,null,null,null,{"$f":"F10","v":0}]
[{"$f":"A10+1","v":2},null,null,null,null,null,null,null,{"$f":"F11","v":0},null,null,null,null,{"$f":"F11","v":0},null,null,null,null,null,null,null,null,{"$f":"F11","v":0}]
[{"$f":"A11+1","v":3},null,null,null,null,null,null,null,{"$f":"F12","v":0},null,null,null,null,{"$f":"F12","v":0},null,null,null,null,null,null,null,null,0]
[4,null,null,null,null,null,null,null,0,null,null,null,null,0,null,null,null,null,null,null,null,null,0]
[5,null,null,null,null,null,null,null,0,null,null,null,null,0,null,null,null,null,null,null,null,null,0]
[6,null,null,null,null,null,null,null,0,null,null,null,null,0,null,null,null,null,null,null,null,null,0]
[7,null,null,null,null,null,null,null,0,null,null,null,null,0,null,null,null,null,null,null,null,null,0]
[8,null,null,null,null,null,null,null,0,null,null,null,null,0,null,null,null,null,null,null,null,null,0]
[9,null,null,null,null,null,null,null,0,null,null,null,null,0,null,null,null,null,null,null,null,null,0]
[10,null,null,null,null,null,null,null,0,null,null,null,null,0,null,null,null,null,null,null,null,null,0]
[11,null,null,null,null,null,null,null,0,null,null,null,null,0,null,null,null,null,null,null,null,null,0]
[12,null,null,null,null,null,null,null,0,null,null,null,null,0,null,null,null,null,null,null,null,null,0]
[13,null,null,null,null,null,null,null,0,null,null,null,null,0,null,null,null,null,null,null,null,null,0]
[14,null,null,null,null,null,null,null,0,null,null,null,null,0,null,null,null,null,null,null,null,null,0]
[15,null,null,null,null,null,null,null,0,null,null,null,null,0,null,null,null,null,null,null,null,null,0]
[16,null,null,null,null,null,null,null,0,null,null,null,null,0,null,null,null,null,null,null,null,null,0]
[17,null,null,null,null,null,null,null,0,null,null,null,null,0,null,null,null,null,null,null,null,null,0]
[18,null,null,null,null,null,null,null,0,null,null,null,null,0,null,null,null,null,null,null,null,null,0]
[19,null,null,null,null,null,null,null,0,null,null,null,null,0,null,null,null,null,null,null,null,null,0]
[20,null,null,null,null,null,null,null,0,null,null,null,null,0,null,null,null,null,null,null,null,null,0]
[21,null,null,null,null,null,null,null,0,null,null,null,null,0,null,null,null,null,null,null,null,null,0]
[22,null,null,null,null,null,null,null,0,null,null,null,null,0,null,null,null,null,null,null,null,null,0]
[23,null,null,null,null,null,null,null,0,null,null,null,null,0,null,null,null,null,null,null,null,null,0]
[24,null,null,null,null,null,null,null,0,null,null,null,null,0,null,null,null,null,null,null,null,null,0]
[25,null,null,null,null,null,null,null,0,null,null,null,null,0,null,null,null,null,null,null,null,null,0]
[26,null,null,null,null,null,null,null,0,null,null,null,null,0,null,null,null,null,null,null,null,null,0]
[27,null,null,null,null,null,null,null,0,null,null,null,null,0,null,null,null,null,null,null,null,null,0]
[28,null,null,null,null,null,null,null,0,null,null,null,null,0,null,null,null,null,null,null,null,null,0]
[29,null,null,null,null,null,null,null,0,null,null,null,null,0,null,null,null,null,null,null,null,null,0]
[30,null,null,null,null,null,null,null,0,null,null,null,null,0,null,null,null,null,null,null,null,null,0]
[31,null,null,null,null,null,null,null,0,null,null,null,null,0,null,null,null,null,null,null,null,null,0]
[32,null,null,null,null,null,null,null,0,null,null,null,null,0,null,null,null,null,null,null,null,null,0]
[33,null,null,null,null,null,null,null,0,null,null,null,null,0,null,null,null,null,null,null,null,null,0]
[34,null,null,null,null,null,null,null,0,null,null,null,null,0,null,null,null,null,null,null,null,null,0]
[35,null,null,null,null,null,null,null,0,null,null,null,null,0,null,null,null,null,null,null,null,null,0]
[36,null,null,null,null,null,null,null,0,null,null,null,null,0,null,null,null,null,null,null,null,null,0]
[37,null,null,null,null,null,null,null,0,null,null,null,null,0,null,null,null,null,null,null,null,null,0]
[38,null,null,null,null,null,null,null,0,null,null,null,null,0,null,null,null,null,null,null,null,null,0]
[39,null,null,null,null,null,null,null,0,null,null,null,null,0,null,null,null,null,null,null,null,null,0]
[40,null,null,null,null,null,null,null,0,null,null,null,null,0,null,null,null,null,null,null,null,null,0]
[41,null,null,null,null,null,null,null,0,null,null,null,null,0,null,null,null,null,null,null,null,null,0]
[42,null,null,null,null,null,null,null,0,null,null,null,null,0,null,null,null,null,null,null,null,null,0]
[43,null,null,null,null,null,null,null,0,null,null,null,null,0,null,null,null,null,null,null,null,null,0]
[44,null,null,null,null,null,null,null,0,null,null,null,null,0,null,null,null,null,null,null,null,null,0]
[45,null,null,null,null,null,null,null,0,null,null,null,null,0,null,null,null,null,null,null,null,null,0]
[46,null,null,null,null,null,null,null,0,null,null,null,null,0,null,null,null,null,null,null,null,null,0]
[47,null,null,null,null,null,null,null,0,null,null,null,null,0,null,null,null,null,null,null,null,null,0]
[48,null,null,null,null,null,null,null,0,null,null,null,null,0,null,null,null,null,null,null,null,null,0]
[49,null,null,null,null,null,null,null,0,null,null,null,null,0,null,null,null,null,null,null,null,null,0]
[50,null,null,null,null,null,null,null,0,null,null,null,null,0,null,null,null,null,null,null,null,null,0]
[51,null,null,null,null,null,null,null,0,null,null,null,null,0,null,null,null,null,null,null,null,null,0]
[52,null,null,null,null,null,null,null,0,null,null,null,null,0,null,null,null,null,null,null,null,null,0]
[53,null,null,null,null,null,null,null,0,null,null,null,null,0,null,null,null,null,null,null,null,null,0]
[54,null,null,null,null,null,null,null,0,null,null,null,null,0,null,null,null,null,null,null,null,null,0]
[55,null,null,null,null,null,null,null,0,null,null,null,null,0,null,null,null,null,null,null,null,null,0]
[56,null,null,null,null,null,null,null,0,null,null,null,null,0,null,null,null,null,null,null,null,null,0]
[57,null,null,null,null,null,null,null,0,null,null,null,null,0,null,null,null,null,null,null,null,null,0]
[58,null,null,null,null,null,null,null,0,null,null,null,null,0,null,null,null,null,null,null,null,null,0]
[{"$f":"A67+1","v":59},null,null,null,null,null,null,null,0,null,null,null,null,0,null,null,null,null,null,null,null,null,0]
[60]
[{"$f":"A69+1","v":61}]
[62]
[63]
[64]
[65]
[66]
[67]
[68]
[69]
[70]
[71]
[72]
[73]
[74]
[75]
[76]
[77]
[78]
[79]
[80]
[81]
[82]
[83]
[84]
[85]
[86]
[87]
[88]
[89]
[90]
[91]
[92]
[93]
[94]
[95]
[96]
[97]
[98]
[99]
[100]
[101]
[102]
[121]
[122]
[123]
[124]
[125]
[126]
[127]
[128]
[129]
[130]
[131]
[132]
[133]
[134]
[135]
[136]
[137]
[138]
[139]
[140]
[141]
[142]
[143]
[144]
[145]
[146]
[147]
[148]
[149]
[150]
[151]
[152]
[153]
[154]
[155]
[156]
[157]
[158]
[159]
[160]
[161]
[162]
[163]
[164]
[165]
[166]
[167]
[168]
[169]
[170]
[171]
[172]
[173]
[174]
[175]
[176]
[177]
[178]
[179]
[180]
[181]
[182]
[183]
[184]
[185]
[186]
[187]
[188]
[189]
[190]
[191]
[192]
[193]
[194]
[195]
[196]
[197]
[198]
[199]
[200]
[201]
[202]
[203]
[204]
[205]
[206]
[207]
[208]
[209]
[210]
[211]
[212]
[213]
[214]
[215]
[216]
[217]
[218]
[219]
[220]
[221]
[222]
[223]
[224]
[225]
[226]
[227]
[228]
[229]
[230]
[231]
[232]
[233]
[234]
[235]
[236]
[237]
[238]
[239]
[240]
[241]
[242]
[243]
[244]
[245]
[246]
[247]
[248]
[249]
[250]
[251]
[252]
[253]
[254]
[255]
[256]
[257]
[258]
[259]
[260]
[261]
[262]
[263]
[264]
[265]
[266]
[267]
[268]
[269]
[270]
[271]
[272]
[273]
[274]
[275]
[276]
[277]
[278]
[279]
[280]
[281]
[282]
[283]
[284]
[285]
[286]
[287]
[288]
[289]
[290]
[291]
[292]
[293]
[294]
[295]
[296]
[297]
[298]
[299]
[300]
[301]
[302]
[303]
[304]
[305]
[306]
[307]
[308]
[309]
[310]
[311]
[312]
[313]
[314]
[315]
[316]
[317]
[318]
[319]
[320]
[321]
[322]
[323]
[324]
[325]
[326]
[327]
[328]
[329]
[330]
[331]
[332]
[333]
[334]
[335]
[336]
[337]
[338]
[339]
[340]
[341]
[342]
[343]
[344]
[345]
[346]
[347]
[348]
[349]
[350]
[351]
[352]
[353]
[354]
[355]
[356]
[357]
[358]
[359]
[360]
[361]
[362]
[363]
[364]
[365]
[366]
[367]
[368]
[369]
[370]
[371]
[372]
[373]
[374]
[375]
[376]
[377]
[378]
[379]
[380]
[381]
[382]
[383]
[384]
[385]
[386]
[387]
[388]
[389]
[390]
[391]
[392]
[393]
[394]
[395]
[396]
[397]
[398]
[399]
[400]
[401]
[402]
[403]
[404]
[405]
[406]
[407]
[408]
[409]
[410]
[411]
[412]
[413]
[414]
[415]
[416]
[417]
[418]
[419]
[420]
[421]
[422]
[423]
[424]
[425]
[426]
[427]
[428]
[429]
[430]
[431]
[432]
[433]
[434]
[435]
[436]
[437]
[438]
[439]
[440]
[441]
[442]
[443]
[444]
[445]
[446]
[447]
[448]
[449]
[450]
[451]
[452]
[453]
[454]
[455]
[456]
[457]
[458]
[459]
[460]
[461]
[462]
[463]
[464]
[465]
[466]
[467]
[468]
[469]
[470]
[471]
[472]
[473]
[474]
[475]
[476]
[477]
[478]
[479]
[480]
[481]
[482]
[483]
[484]
[485]
[486]
[487]
[488]
[489]
[490]
[491]
[492]
[493]
[494]
[495]
[496]
[497]
[498]
[499]
[500]

{"sheet":"waybill front 1-2","index":2,"n_rows":20,"n_cols":56,"rows_kept":20,"cut":false,"hidden":false,"merged":[[13,31,16,31],[6,25,7,25],[5,24,7,24],[6,20,8,20],[10,20,12,20],[14,20,16,20],[13,52,16,53],[13,33,15,33],[1,33,3,33],[2,43,3,43],[14,48,16,48],[2,38,4,38],[14,50,16,50],[10,48,12,48],[10,50,12,50],[1,34,4,35],[1,36,4,37],[5,42,7,42],[5,41,7,41],[13,49,16,49],[5,40,8,40],[2,47,4,47],[2,48,4,48],[1,40,4,40],[1,0,4,1],[5,0,8,1],[9,0,12,1],[13,0,16,1],[1,16,4,17],[13,51,15,51],[14,43,15,43],[5,15,7,15],[6,8,7,8],[13,42,15,42],[14,45,15,45],[14,27,15,27],[6,27,7,27],[10,27,11,27],[6,30,8,30],[9,41,11,41],[14,26,15,26],[5,33,7,33],[14,11,16,11],[14,12,16,12],[6,14,8,14],[5,21,7,21],[10,30,12,30],[13,16,16,17],[1,52,4,53],[5,52,8,53],[9,52,12,53],[6,44,7,44],[10,44,11,44],[6,47,8,47],[6,48,8,48],[9,49,12,49],[2,45,3,45],[5,49,8,49],[1,49,4,49],[2,46,4,46],[2,44,3,44],[14,25,15,25],[6,32,8,32],[5,39,7,39],[6,45,7,45],[6,43,7,43],[6,50,8,50],[2,50,4,50],[10,47,12,47],[9,51,11,51],[5,51,7,51],[1,51,3,51],[10,43,11,43],[5,34,8,35],[9,34,12,35],[13,34,16,35],[5,36,8,37],[9,36,12,37],[13,36,16,37],[9,31,12,31],[9,33,11,33],[10,25,11,25],[6,26,7,26],[6,29,8,29],[5,31,8,31],[1,23,3,23],[14,2,16,2],[10,2,12,2],[6,2,8,2],[2,2,4,2],[2,9,3,9],[6,9,7,9],[10,9,11,9],[14,9,15,9],[6,7,7,7],[10,7,11,7],[14,8,15,8],[5,4,8,4],[14,7,15,7],[13,5,15,5],[13,6,15,6],[5,3,7,3],[9,3,11,3],[13,3,15,3],[10,8,11,8],[5,18,8,19],[9,18,12,19],[13,18,16,19],[1,22,4,22],[9,21,11,21],[9,24,11,24],[2,8,3,8],[14,47,16,47],[13,41,15,41],[13,24,15,24],[13,23,15,23],[14,28,16,28],[14,29,16,29],[14,30,16,30],[14,46,16,46],[14,32,16,32],[13,39,15,39],[14,38,16,38],[13,40,16,40],[13,21,15,21],[14,14,16,14],[1,39,3,39],[1,24,3,24],[2,30,4,30],[1,31,4,31],[2,26,3,26],[6,46,8,46],[2,32,4,32],[1,3,3,3],[1,4,4,4],[1,5,3,5],[2,7,3,7],[5,5,7,5],[2,12,4,12],[2,14,4,14],[2,10,4,10],[9,23,11,23],[10,10,12,10],[9,22,12,22],[10,11,12,11],[10,12,12,12],[9,16,12,17],[2,11,4,11],[1,15,3,15],[2,20,4,20],[1,18,4,19],[5,16,8,17],[9,15,11,15],[5,23,7,23],[1,21,3,21],[6,11,8,11],[6,12,8,12],[13,4,16,4],[5,13,8,13],[9,13,12,13],[13,13,16,13],[13,22,16,22],[6,10,8,10],[2,28,4,28],[2,29,4,29],[1,13,4,13],[2,27,3,27],[1,6,3,6],[13,15,15,15],[14,10,16,10],[10,14,12,14],[6,28,8,28],[5,6,7,6],[9,5,11,5],[9,6,11,6],[9,4,12,4],[10,28,12,28],[10,29,12,29],[10,26,11,26],[5,22,8,22],[2,25,3,25],[6,38,8,38],[10,38,12,38],[9,39,11,39],[10,46,12,46],[10,45,11,45],[9,42,11,42],[9,40,12,40],[10,32,12,32],[1,41,3,41],[1,42,3,42]]}
[]
[{"$f":"IF(ISERROR(MATCH(Frachtsatz10,waybilldata!$A:$A,0)),\"\",VLOOKUP(Frachtsatz10,waybilldata!$A:$V,6))","v":""},null,1,{"$f":"IF(ISERROR(MATCH(Frachtsatz10,waybilldata!$A:$A,0)),\"\",VLOOKUP(Frachtsatz10,waybilldata!$A:$V,3))","v":""},{"$f":"IF(ISERROR(MATCH(Frachtsatz10,waybilldata!$A:$A,0)),\"\",VLOOKUP(Frachtsatz10,waybilldata!$A:$V,4))","v":""},{"$f":"IF(ISERROR(MATCH(Frachtsatz10,waybilldata!$A:$A,0)),\"\",VLOOKUP(Frachtsatz10,waybilldata!$A:$V,5))","v":""},{"$f":"IF(ISERROR(MATCH(Frachtsatz10,waybilldata!$A:$A,0)),\"\",VLOOKUP(Frachtsatz10,waybilldata!$A:$V,20))","v":""},{"$f":"IF(ISERROR(MATCH(Frachtsatz10,waybilldata!$A:$A,0)),\"\",VLOOKUP(Frachtsatz10,waybilldata!$A:$V,1))","v":""},null,null,"Lading:","From:","VIA:",{"$f":"IF(ISERROR(MATCH(Frachtsatz10,waybilldata!$A:$A,0)),\"\",VLOOKUP(Frachtsatz10,waybilldata!$A:$V,11))","v":""},"To:",{"$f":"IF(ISERROR(MATCH(Frachtsatz10,waybilldata!$A:$A,0)),\"\",VLOOKUP(Frachtsatz10,waybilldata!$A:$V,2))","v":""},{"$f":"IF(ISERROR(MATCH(Frachtsatz10,waybilldata!$A:$A,0)),\"\",VLOOKUP(Frachtsatz10,waybilldata!$A:$V,6))","v":""},null,{"$f":"IF(ISERROR(MATCH(Frachtsatz11,waybilldata!$A:$A,0)),\"\",VLOOKUP(Frachtsatz11,waybilldata!$A:$V,6))","v":""},null,1,{"$f":"IF(ISERROR(MATCH(Frachtsatz11,waybilldata!$A:$A,0)),\"\",VLOOKUP(Frachtsatz11,waybilldata!$A:$V,3))","v":""},{"$f":"IF(ISERROR(MATCH(Frachtsatz11,waybilldata!$A:$A,0)),\"\",VLOOKUP(Frachtsatz11,waybilldata!$A:$V,4))","v":""},{"$f":"IF(ISERROR(MATCH(Frachtsatz11,waybilldata!$A:$A,0)),\"\",VLOOKUP(Frachtsatz11,waybilldata!$A:$V,5))","v":""},{"$f":"IF(ISERROR(MATCH(Frachtsatz11,waybilldata!$A:$A,0)),\"\",VLOOKUP(Frachtsatz11,waybilldata!$A:$V,20))","v":""},{"$f":"IF(ISERROR(MATCH(Frachtsatz10,waybilldata!$A:$A,0)),\"\",VLOOKUP(Frachtsatz11,waybilldata!$A:$V,1))","v":""},null,null,"Lading:","From:","VIA:",{"$f":"IF(ISERROR(MATCH(Frachtsatz11,waybilldata!$A:$A,0)),\"\",VLOOKUP(Frachtsatz11,waybilldata!$A:$V,11))","v":""},"To:",{"$f":"IF(ISERROR(MATCH(Frachtsatz11,waybilldata!$A:$A,0)),\"\",VLOOKUP(Frachtsatz11,waybilldata!$A:$V,2))","v":""},{"$f":"IF(ISERROR(MATCH(Frachtsatz11,waybilldata!$A:$A,0)),\"\",VLOOKUP(Frachtsatz11,waybilldata!$A:$V,6))","v":""},null,{"$f":"IF(ISERROR(MATCH(Frachtsatz12,waybilldata!$A:$A,0)),\"\",VLOOKUP(Frachtsatz12,waybilldata!$A:$V,6))","v":""},null,1,{"$f":"IF(ISERROR(MATCH(Frachtsatz12,waybilldata!$A:$A,0)),\"\",VLOOKUP(Frachtsatz12,waybilldata!$A:$V,3))","v":""},{"$f":"IF(ISERROR(MATCH(Frachtsatz12,waybilldata!$A:$A,0)),\"\",VLOOKUP(Frachtsatz12,waybilldata!$A:$V,4))","v":""},{"$f":"IF(ISERROR(MATCH(Frachtsatz12,waybilldata!$A:$A,0)),\"\",VLOOKUP(Frachtsatz12,waybilldata!$A:$V,5))","v":""},{"$f":"IF(ISERROR(MATCH(Frachtsatz12,waybilldata!$A:$A,0)),\"\",VLOOKUP(Frachtsatz12,waybilldata!$A:$V,20))","v":""},{"$f":"IF(ISERROR(MATCH(Frachtsatz12,waybilldata!$A:$A,0)),\"\",VLOOKUP(Frachtsatz12,waybilldata!$A:$V,1))","v":""},null,null,"Lading:","From:","VIA:",{"$f":"IF(ISERROR(MATCH(Frachtsatz12,waybilldata!$A:$A,0)),\"\",VLOOKUP(Frachtsatz12,waybilldata!$A:$V,11))","v":""},"To:",{"$f":"IF(ISERROR(MATCH(Frachtsatz12,waybilldata!$A:$A,0)),\"\",VLOOKUP(Frachtsatz12,waybilldata!$A:$V,2))","v":""},{"$f":"IF(ISERROR(MATCH(Frachtsatz12,waybilldata!$A:$A,0)),\"\",VLOOKUP(Frachtsatz12,waybilldata!$A:$V,6))","v":""}]
[null,null,{"$f":"IF(ISERROR(MATCH(Frachtsatz10,waybilldata!$A:$A,0)),\"\",VLOOKUP(Frachtsatz10,waybilldata!$A:$V,2))","v":""},null,null,null,null,{"$f":"IF(ISERROR(MATCH(Frachtsatz10,waybilldata!$A:$A,0)),\"\",VLOOKUP(Frachtsatz10,waybilldata!$A:$V,7))","v":""},{"$f":"IF(ISERROR(MATCH(Frachtsatz10,waybilldata!$A:$A,0)),\"\",VLOOKUP(Frachtsatz10,waybilldata!$A:$V,1))","v":""},null,{"$f":"IF(ISERROR(MATCH(Frachtsatz10,waybilldata!$A:$A,0)),\"\",VLOOKUP(Frachtsatz10,waybilldata!$A:$V,12))","v":""},{"$f":"IF(ISERROR(MATCH(Frachtsatz10,waybilldata!$A:$A,0)),\"\",VLOOKUP(Frachtsatz10,waybilldata!$A:$V,3))","v":""},{"$f":"IF(ISERROR(MATCH(Frachtsatz10,waybilldata!$A:$A,0)),\"\",VLOOKUP(Frachtsatz10,waybilldata!$A:$V,8))","v":""},null,{"$f":"IF(ISERROR(MATCH(Frachtsatz10,waybilldata!$A:$A,0)),\"\",VLOOKUP(Frachtsatz10,waybilldata!$A:$V,10))","v":""},null,null,null,null,null,{"$f":"IF(ISERROR(MATCH(Frachtsatz11,waybilldata!$A:$A,0)),\"\",VLOOKUP(Frachtsatz11,waybilldata!$A:$V,2))","v":""},null,null,null,null,{"$f":"IF(ISERROR(MATCH(Frachtsatz11,waybilldata!$A:$A,0)),\"\",VLOOKUP(Frachtsatz11,waybilldata!$A:$V,7))","v":""},"``",null,{"$f":"IF(ISERROR(MATCH(Frachtsatz11,waybilldata!$A:$A,0)),\"\",VLOOKUP(Frachtsatz11,waybilldata!$A:$V,12))","v":""},{"$f":"IF(ISERROR(MATCH(Frachtsatz11,waybilldata!$A:$A,0)),\"\",VLOOKUP(Frachtsatz11,waybilldata!$A:$V,3))","v":""},{"$f":"IF(ISERROR(MATCH(Frachtsatz11,waybilldata!$A:$A,0)),\"\",VLOOKUP(Frachtsatz11,waybilldata!$A:$V,8))","v":""},null,{"$f":"IF(ISERROR(MATCH(Frachtsatz11,waybilldata!$A:$A,0)),\"\",VLOOKUP(Frachtsatz11,waybilldata!$A:$V,10))","v":""},null,null,null,null,null,{"$f":"IF(ISERROR(MATCH(Frachtsatz12,waybilldata!$A:$A,0)),\"\",VLOOKUP(Frachtsatz12,waybilldata!$A:$V,2))","v":""},null,null,null,null,{"$f":"IF(ISERROR(MATCH(Frachtsatz12,waybilldata!$A:$A,0)),\"\",VLOOKUP(Frachtsatz12,waybilldata!$A:$V,7))","v":""},{"$f":"IF(ISERROR(MATCH(Frachtsatz12,waybilldata!$A:$A,0)),\"\",VLOOKUP(Frachtsatz12,waybilldata!$A:$V,1))","v":""},null,{"$f":"IF(ISERROR(MATCH(Frachtsatz12,waybilldata!$A:$A,0)),\"\",VLOOKUP(Frachtsatz12,waybilldata!$A:$V,12))","v":""},{"$f":"IF(ISERROR(MATCH(Frachtsatz12,waybilldata!$A:$A,0)),\"\",VLOOKUP(Frachtsatz12,waybilldata!$A:$V,3))","v":""},{"$f":"IF(ISERROR(MATCH(Frachtsatz12,waybilldata!$A:$A,0)),\"\",VLOOKUP(Frachtsatz12,waybilldata!$A:$V,8))","v":""},null,{"$f":"IF(ISERROR(MATCH(Frachtsatz12,waybilldata!$A:$A,0)),\"\",VLOOKUP(Frachtsatz12,waybilldata!$A:$V,10))","v":""}]
[]
[null,null,null,"To:",null,"VIA:","From","Lading",null,null,null,null,null,null,null,2,null,null,null,null,null,"To:",null,"VIA:","From","Lading",null,null,null,null,null,null,null,2,null,null,null,null,null,"To:",null,"VIA:","From","Lading",null,null,null,null,null,null,null,2]
[{"$f":"IF(ISERROR(MATCH(Frachtsatz7,waybilldata!$A:$A,0)),\"\",VLOOKUP(Frachtsatz7,waybilldata!$A:$V,6))","v":""},null,1,{"$f":"IF(ISERROR(MATCH(Frachtsatz7,waybilldata!$A:$A,0)),\"\",VLOOKUP(Frachtsatz7,waybilldata!$A:$V,3))","v":""},{"$f":"IF(ISERROR(MATCH(Frachtsatz7,waybilldata!$A:$A,0)),\"\",VLOOKUP(Frachtsatz7,waybilldata!$A:$V,4))","v":""},{"$f":"IF(ISERROR(MATCH(Frachtsatz7,waybilldata!$A:$A,0)),\"\",VLOOKUP(Frachtsatz7,waybilldata!$A:$V,5))","v":""},{"$f":"IF(ISERROR(MATCH(Frachtsatz7,waybilldata!$A:$A,0)),\"\",VLOOKUP(Frachtsatz7,waybilldata!$A:$V,20))","v":""},{"$f":"IF(ISERROR(MATCH(Frachtsatz7,waybilldata!$A:$A,0)),\"\",VLOOKUP(Frachtsatz7,waybilldata!$A:$V,1))","v":""},null,null,"Lading:","From:","VIA:",{"$f":"IF(ISERROR(MATCH(Frachtsatz7,waybilldata!$A:$A,0)),\"\",VLOOKUP(Frachtsatz7,waybilldata!$A:$V,11))","v":""},"To:",{"$f":"IF(ISERROR(MATCH(Frachtsatz7,waybilldata!$A:$A,0)),\"\",VLOOKUP(Frachtsatz7,waybilldata!$A:$V,2))","v":""},{"$f":"IF(ISERROR(MATCH(Frachtsatz7,waybilldata!$A:$A,0)),\"\",VLOOKUP(Frachtsatz7,waybilldata!$A:$V,6))","v":""},null,{"$f":"IF(ISERROR(MATCH(Frachtsatz8,waybilldata!$A:$A,0)),\"\",VLOOKUP(Frachtsatz8,waybilldata!$A:$V,6))","v":""},null,1,{"$f":"IF(ISERROR(MATCH(Frachtsatz8,waybilldata!$A:$A,0)),\"\",VLOOKUP(Frachtsatz8,waybilldata!$A:$V,3))","v":""},{"$f":"IF(ISERROR(MATCH(Frachtsatz8,waybilldata!$A:$A,0)),\"\",VLOOKUP(Frachtsatz8,waybilldata!$A:$V,4))","v":""},{"$f":"IF(ISERROR(MATCH(Frachtsatz8,waybilldata!$A:$A,0)),\"\",VLOOKUP(Frachtsatz8,waybilldata!$A:$V,5))","v":""},{"$f":"IF(ISERROR(MATCH(Frachtsatz8,waybilldata!$A:$A,0)),\"\",VLOOKUP(Frachtsatz8,waybilldata!$A:$V,20))","v":""},{"$f":"IF(ISERROR(MATCH(Frachtsatz8,waybilldata!$A:$A,0)),\"\",VLOOKUP(Frachtsatz8,waybilldata!$A:$V,1))","v":""},null,null,"Lading:","From:","VIA:",{"$f":"IF(ISERROR(MATCH(Frachtsatz8,waybilldata!$A:$A,0)),\"\",VLOOKUP(Frachtsatz8,waybilldata!$A:$V,11))","v":""},"To:",{"$f":"IF(ISERROR(MATCH(Frachtsatz8,waybilldata!$A:$A,0)),\"\",VLOOKUP(Frachtsatz8,waybilldata!$A:$V,2))","v":""},{"$f":"IF(ISERROR(MATCH(Frachtsatz8,waybilldata!$A:$A,0)),\"\",VLOOKUP(Frachtsatz8,waybilldata!$A:$V,6))","v":""},null,{"$f":"IF(ISERROR(MATCH(Frachtsatz9,waybilldata!$A:$A,0)),\"\",VLOOKUP(Frachtsatz9,waybilldata!$A:$V,6))","v":""},null,1,{"$f":"IF(ISERROR(MATCH(Frachtsatz9,waybilldata!$A:$A,0)),\"\",VLOOKUP(Frachtsatz9,waybilldata!$A:$V,3))","v":""},{"$f":"IF(ISERROR(MATCH(Frachtsatz9,waybilldata!$A:$A,0)),\"\",VLOOKUP(Frachtsatz9,waybilldata!$A:$V,4))","v":""},{"$f":"IF(ISERROR(MATCH(Frachtsatz9,waybilldata!$A:$A,0)),\"\",VLOOKUP(Frachtsatz9,waybilldata!$A:$V,5))","v":""},{"$f":"IF(ISERROR(MATCH(Frachtsatz9,waybilldata!$A:$A,0)),\"\",VLOOKUP(Frachtsatz9,waybilldata!$A:$V,20))","v":""},{"$f":"IF(ISERROR(MATCH(Frachtsatz9,waybilldata!$A:$A,0)),\"\",VLOOKUP(Frachtsatz9,waybilldata!$A:$V,1))","v":""},null,null,"Lading:","From:","VIA:",{"$f":"IF(ISERROR(MATCH(Frachtsatz9,waybilldata!$A:$A,0)),\"\",VLOOKUP(Frachtsatz9,waybilldata!$A:$V,11))","v":""},"To:",{"$f":"IF(ISERROR(MATCH(Frachtsatz9,waybilldata!$A:$A,0)),\"\",VLOOKUP(Frachtsatz9,waybilldata!$A:$V,2))","v":""},{"$f":"IF(ISERROR(MATCH(Frachtsatz9,waybilldata!$A:$A,0)),\"\",VLOOKUP(Frachtsatz9,waybilldata!$A:$V,6))","v":""}]
[null,null,{"$f":"IF(ISERROR(MATCH(Frachtsatz7,waybilldata!$A:$A,0)),\"\",VLOOKUP(Frachtsatz7,waybilldata!$A:$V,2))","v":""},null,null,null,null,{"$f":"IF(ISERROR(MATCH(Frachtsatz7,waybilldata!$A:$A,0)),\"\",VLOOKUP(Frachtsatz7,waybilldata!$A:$V,7))","v":""},{"$f":"IF(ISERROR(MATCH(Frachtsatz7,waybilldata!$A:$A,0)),\"\",VLOOKUP(Frachtsatz7,waybilldata!$A:$V,1))","v":""},null,{"$f":"IF(ISERROR(MATCH(Frachtsatz7,waybilldata!$A:$A,0)),\"\",VLOOKUP(Frachtsatz7,waybilldata!$A:$V,12))","v":""},{"$f":"IF(ISERROR(MATCH(Frachtsatz7,waybilldata!$A:$A,0)),\"\",VLOOKUP(Frachtsatz7,waybilldata!$A:$V,3))","v":""},{"$f":"IF(ISERROR(MATCH(Frachtsatz7,waybilldata!$A:$A,0)),\"\",VLOOKUP(Frachtsatz7,waybilldata!$A:$V,8))","v":""},null,{"$f":"IF(ISERROR(MATCH(Frachtsatz7,waybilldata!$A:$A,0)),\"\",VLOOKUP(Frachtsatz7,waybilldata!$A:$V,10))","v":""},null,null,null,null,null,{"$f":"IF(ISERROR(MATCH(Frachtsatz8,waybilldata!$A:$A,0)),\"\",VLOOKUP(Frachtsatz8,waybilldata!$A:$V,2))","v":""},null,null,null,null,{"$f":"IF(ISERROR(MATCH(Frachtsatz8,waybilldata!$A:$A,0)),\"\",VLOOKUP(Frachtsatz8,waybilldata!$A:$V,7))","v":""},{"$f":"IF(ISERROR(MATCH(Frachtsatz8,waybilldata!$A:$A,0)),\"\",VLOOKUP(Frachtsatz8,waybilldata!$A:$V,1))","v":""},null,{"$f":"IF(ISERROR(MATCH(Frachtsatz8,waybilldata!$A:$A,0)),\"\",VLOOKUP(Frachtsatz8,waybilldata!$A:$V,12))","v":""},{"$f":"IF(ISERROR(MATCH(Frachtsatz8,waybilldata!$A:$A,0)),\"\",VLOOKUP(Frachtsatz8,waybilldata!$A:$V,3))","v":""},{"$f":"IF(ISERROR(MATCH(Frachtsatz8,waybilldata!$A:$A,0)),\"\",VLOOKUP(Frachtsatz8,waybilldata!$A:$V,8))","v":""},null,{"$f":"IF(ISERROR(MATCH(Frachtsatz8,waybilldata!$A:$A,0)),\"\",VLOOKUP(Frachtsatz8,waybilldata!$A:$V,10))","v":""},null,null,null,null,null,{"$f":"IF(ISERROR(MATCH(Frachtsatz9,waybilldata!$A:$A,0)),\"\",VLOOKUP(Frachtsatz9,waybilldata!$A:$V,2))","v":""},null,null,null,null,{"$f":"IF(ISERROR(MATCH(Frachtsatz9,waybilldata!$A:$A,0)),\"\",VLOOKUP(Frachtsatz9,waybilldata!$A:$V,7))","v":""},{"$f":"IF(ISERROR(MATCH(Frachtsatz9,waybilldata!$A:$A,0)),\"\",VLOOKUP(Frachtsatz9,waybilldata!$A:$V,1))","v":""},null,{"$f":"IF(ISERROR(MATCH(Frachtsatz9,waybilldata!$A:$A,0)),\"\",VLOOKUP(Frachtsatz9,waybilldata!$A:$V,12))","v":""},{"$f":"IF(ISERROR(MATCH(Frachtsatz9,waybilldata!$A:$A,0)),\"\",VLOOKUP(Frachtsatz9,waybilldata!$A:$V,3))","v":""},{"$f":"IF(ISERROR(MATCH(Frachtsatz9,waybilldata!$A:$A,0)),\"\",VLOOKUP(Frachtsatz9,waybilldata!$A:$V,8))","v":""},null,{"$f":"IF(ISERROR(MATCH(Frachtsatz9,waybilldata!$A:$A,0)),\"\",VLOOKUP(Frachtsatz9,waybilldata!$A:$V,10))","v":""}]
[]
[null,null,null,"To:",null,"VIA:","From","Lading",null,null,null,null,null,null,null,2,null,null,null,null,null,"To:",null,"VIA:","From","Lading",null,null,null,null,null,null,null,2,null,null,null,null,null,"To:",null,"VIA:","From","Lading",null,null,null,null,null,null,null,2]
[{"$f":"IF(ISERROR(MATCH(Frachtsatz4,waybilldata!$A:$A,0)),\"\",VLOOKUP(Frachtsatz4,waybilldata!$A:$V,6))","v":""},null,1,{"$f":"IF(ISERROR(MATCH(Frachtsatz4,waybilldata!$A:$A,0)),\"\",VLOOKUP(Frachtsatz4,waybilldata!$A:$V,3))","v":""},{"$f":"IF(ISERROR(MATCH(Frachtsatz4,waybilldata!$A:$A,0)),\"\",VLOOKUP(Frachtsatz4,waybilldata!$A:$V,4))","v":""},{"$f":"IF(ISERROR(MATCH(Frachtsatz4,waybilldata!$A:$A,0)),\"\",VLOOKUP(Frachtsatz4,waybilldata!$A:$V,5))","v":""},{"$f":"IF(ISERROR(MATCH(Frachtsatz4,waybilldata!$A:$A,0)),\"\",VLOOKUP(Frachtsatz4,waybilldata!$A:$V,20))","v":""},{"$f":"IF(ISERROR(MATCH(Frachtsatz4,waybilldata!$A:$A,0)),\"\",VLOOKUP(Frachtsatz4,waybilldata!$A:$V,1))","v":""},null,null,"Lading:","From:","VIA:",{"$f":"IF(ISERROR(MATCH(Frachtsatz4,waybilldata!$A:$A,0)),\"\",VLOOKUP(Frachtsatz4,waybilldata!$A:$V,11))","v":""},"To:",{"$f":"IF(ISERROR(MATCH(Frachtsatz4,waybilldata!$A:$A,0)),\"\",VLOOKUP(Frachtsatz4,waybilldata!$A:$V,2))","v":""},{"$f":"IF(ISERROR(MATCH(Frachtsatz4,waybilldata!$A:$A,0)),\"\",VLOOKUP(Frachtsatz4,waybilldata!$A:$V,6))","v":""},null,{"$f":"IF(ISERROR(MATCH(Frachtsatz5,waybilldata!$A:$A,0)),\"\",VLOOKUP(Frachtsatz5,waybilldata!$A:$V,6))","v":""},null,1,{"$f":"IF(ISERROR(MATCH(Frachtsatz5,waybilldata!$A:$A,0)),\"\",VLOOKUP(Frachtsatz5,waybilldata!$A:$V,3))","v":""},{"$f":"IF(ISERROR(MATCH(Frachtsatz5,waybilldata!$A:$A,0)),\"\",VLOOKUP(Frachtsatz5,waybilldata!$A:$V,4))","v":""},{"$f":"IF(ISERROR(MATCH(Frachtsatz5,waybilldata!$A:$A,0)),\"\",VLOOKUP(Frachtsatz5,waybilldata!$A:$V,5))","v":""},{"$f":"IF(ISERROR(MATCH(Frachtsatz5,waybilldata!$A:$A,0)),\"\",VLOOKUP(Frachtsatz5,waybilldata!$A:$V,20))","v":""},{"$f":"IF(ISERROR(MATCH(Frachtsatz5,waybilldata!$A:$A,0)),\"\",VLOOKUP(Frachtsatz5,waybilldata!$A:$V,1))","v":""},null,null,"Lading:","From:","VIA:",{"$f":"IF(ISERROR(MATCH(Frachtsatz5,waybilldata!$A:$A,0)),\"\",VLOOKUP(Frachtsatz5,waybilldata!$A:$V,11))","v":""},"To:",{"$f":"IF(ISERROR(MATCH(Frachtsatz5,waybilldata!$A:$A,0)),\"\",VLOOKUP(Frachtsatz5,waybilldata!$A:$V,2))","v":""},{"$f":"IF(ISERROR(MATCH(Frachtsatz5,waybilldata!$A:$A,0)),\"\",VLOOKUP(Frachtsatz5,waybilldata!$A:$V,6))","v":""},null,{"$f":"IF(ISERROR(MATCH(Frachtsatz6,waybilldata!$A:$A,0)),\"\",VLOOKUP(Frachtsatz6,waybilldata!$A:$V,6))","v":""},null,1,{"$f":"IF(ISERROR(MATCH(Frachtsatz6,waybilldata!$A:$A,0)),\"\",VLOOKUP(Frachtsatz6,waybilldata!$A:$V,3))","v":""},{"$f":"IF(ISERROR(MATCH(Frachtsatz6,waybilldata!$A:$A,0)),\"\",VLOOKUP(Frachtsatz6,waybilldata!$A:$V,4))","v":""},{"$f":"IF(ISERROR(MATCH(Frachtsatz6,waybilldata!$A:$A,0)),\"\",VLOOKUP(Frachtsatz6,waybilldata!$A:$V,5))","v":""},{"$f":"IF(ISERROR(MATCH(Frachtsatz6,waybilldata!$A:$A,0)),\"\",VLOOKUP(Frachtsatz6,waybilldata!$A:$V,20))","v":""},{"$f":"IF(ISERROR(MATCH(Frachtsatz6,waybilldata!$A:$A,0)),\"\",VLOOKUP(Frachtsatz6,waybilldata!$A:$V,1))","v":""},null,null,"Lading:","From:","VIA:",{"$f":"IF(ISERROR(MATCH(Frachtsatz6,waybilldata!$A:$A,0)),\"\",VLOOKUP(Frachtsatz6,waybilldata!$A:$V,11))","v":""},"To:",{"$f":"IF(ISERROR(MATCH(Frachtsatz6,waybilldata!$A:$A,0)),\"\",VLOOKUP(Frachtsatz6,waybilldata!$A:$V,2))","v":""},{"$f":"IF(ISERROR(MATCH(Frachtsatz6,waybilldata!$A:$A,0)),\"\",VLOOKUP(Frachtsatz6,waybilldata!$A:$V,6))","v":""}]
[null,null,{"$f":"IF(ISERROR(MATCH(Frachtsatz4,waybilldata!$A:$A,0)),\"\",VLOOKUP(Frachtsatz4,waybilldata!$A:$V,2))","v":""},null,null,null,null,{"$f":"IF(ISERROR(MATCH(Frachtsatz4,waybilldata!$A:$A,0)),\"\",VLOOKUP(Frachtsatz4,waybilldata!$A:$V,7))","v":""},{"$f":"IF(ISERROR(MATCH(Frachtsatz4,waybilldata!$A:$A,0)),\"\",VLOOKUP(Frachtsatz4,waybilldata!$A:$V,1))","v":""},null,{"$f":"IF(ISERROR(MATCH(Frachtsatz4,waybilldata!$A:$A,0)),\"\",VLOOKUP(Frachtsatz4,waybilldata!$A:$V,12))","v":""},{"$f":"IF(ISERROR(MATCH(Frachtsatz4,waybilldata!$A:$A,0)),\"\",VLOOKUP(Frachtsatz4,waybilldata!$A:$V,3))","v":""},{"$f":"IF(ISERROR(MATCH(Frachtsatz4,waybilldata!$A:$A,0)),\"\",VLOOKUP(Frachtsatz4,waybilldata!$A:$V,8))","v":""},null,{"$f":"IF(ISERROR(MATCH(Frachtsatz4,waybilldata!$A:$A,0)),\"\",VLOOKUP(Frachtsatz4,waybilldata!$A:$V,10))","v":""},null,null,null,null,null,{"$f":"IF(ISERROR(MATCH(Frachtsatz5,waybilldata!$A:$A,0)),\"\",VLOOKUP(Frachtsatz5,waybilldata!$A:$V,2))","v":""},null,null,null,null,{"$f":"IF(ISERROR(MATCH(Frachtsatz5,waybilldata!$A:$A,0)),\"\",VLOOKUP(Frachtsatz5,waybilldata!$A:$V,7))","v":""},{"$f":"IF(ISERROR(MATCH(Frachtsatz5,waybilldata!$A:$A,0)),\"\",VLOOKUP(Frachtsatz5,waybilldata!$A:$V,1))","v":""},null,{"$f":"IF(ISERROR(MATCH(Frachtsatz5,waybilldata!$A:$A,0)),\"\",VLOOKUP(Frachtsatz5,waybilldata!$A:$V,12))","v":""},{"$f":"IF(ISERROR(MATCH(Frachtsatz5,waybilldata!$A:$A,0)),\"\",VLOOKUP(Frachtsatz5,waybilldata!$A:$V,3))","v":""},{"$f":"IF(ISERROR(MATCH(Frachtsatz5,waybilldata!$A:$A,0)),\"\",VLOOKUP(Frachtsatz5,waybilldata!$A:$V,8))","v":""},null,{"$f":"IF(ISERROR(MATCH(Frachtsatz5,waybilldata!$A:$A,0)),\"\",VLOOKUP(Frachtsatz5,waybilldata!$A:$V,10))","v":""},null,null,null,null,null,{"$f":"IF(ISERROR(MATCH(Frachtsatz6,waybilldata!$A:$A,0)),\"\",VLOOKUP(Frachtsatz6,waybilldata!$A:$V,2))","v":""},null,null,null,null,{"$f":"IF(ISERROR(MATCH(Frachtsatz6,waybilldata!$A:$A,0)),\"\",VLOOKUP(Frachtsatz6,waybilldata!$A:$V,7))","v":""},{"$f":"IF(ISERROR(MATCH(Frachtsatz6,waybilldata!$A:$A,0)),\"\",VLOOKUP(Frachtsatz6,waybilldata!$A:$V,1))","v":""},null,{"$f":"IF(ISERROR(MATCH(Frachtsatz6,waybilldata!$A:$A,0)),\"\",VLOOKUP(Frachtsatz6,waybilldata!$A:$V,12))","v":""},{"$f":"IF(ISERROR(MATCH(Frachtsatz6,waybilldata!$A:$A,0)),\"\",VLOOKUP(Frachtsatz6,waybilldata!$A:$V,3))","v":""},{"$f":"IF(ISERROR(MATCH(Frachtsatz6,waybilldata!$A:$A,0)),\"\",VLOOKUP(Frachtsatz6,waybilldata!$A:$V,8))","v":""},null,{"$f":"IF(ISERROR(MATCH(Frachtsatz6,waybilldata!$A:$A,0)),\"\",VLOOKUP(Frachtsatz6,waybilldata!$A:$V,10))","v":""},null,null,null,null,"MOVE 1"]
[null,null,null,null,null,null,null,null,null,null,null,null,null,null,null,null,null,null,null,null,null,null,null,null,null,null,null,null,null,null,null,null,null,null,null,null,null,null,null,null,null,null,null,null,null,null,null,null,null,null,null,null,null,null,null,"MOVE 2"]
[null,null,null,"To:",null,"VIA:","From","Lading",null,null,null,null,null,null,null,2,null,null,null,null,null,"To:",null,"VIA:","From","Lading",null,null,null,null,null,null,null,2,null,null,null,null,null,"To:",null,"VIA:","From","Lading",null,null,null,null,null,null,null,2]
[{"$f":"IF(ISERROR(MATCH(Frachtsatz1,waybilldata!$A:$A,0)),\"\",VLOOKUP(Frachtsatz1,waybilldata!$A:$V,6))","v":""},null,1,{"$f":"IF(ISERROR(MATCH(Frachtsatz1,waybilldata!$A:$A,0)),\"\",VLOOKUP(Frachtsatz1,waybilldata!$A:$V,3))","v":""},{"$f":"IF(ISERROR(MATCH(Frachtsatz1,waybilldata!$A:$A,0)),\"\",VLOOKUP(Frachtsatz1,waybilldata!$A:$V,4))","v":""},{"$f":"IF(ISERROR(MATCH(Frachtsatz1,waybilldata!$A:$A,0)),\"\",VLOOKUP(Frachtsatz1,waybilldata!$A:$V,5))","v":""},{"$f":"IF(ISERROR(MATCH(Frachtsatz1,waybilldata!$A:$A,0)),\"\",VLOOKUP(Frachtsatz1,waybilldata!$A:$V,20))","v":""},{"$f":"IF(ISERROR(MATCH(Frachtsatz1,waybilldata!$A:$A,0)),\"\",VLOOKUP(Frachtsatz1,waybilldata!$A:$V,1))","v":""},null,null,"Lading:","From:","VIA:",{"$f":"IF(ISERROR(MATCH(Frachtsatz1,waybilldata!$A:$A,0)),\"\",VLOOKUP(Frachtsatz1,waybilldata!$A:$V,11))","v":""},"To:",{"$f":"IF(ISERROR(MATCH(Frachtsatz1,waybilldata!$A:$A,0)),\"\",VLOOKUP(Frachtsatz1,waybilldata!$A:$V,2))","v":""},{"$f":"IF(ISERROR(MATCH(Frachtsatz1,waybilldata!$A:$A,0)),\"\",VLOOKUP(Frachtsatz1,waybilldata!$A:$V,6))","v":""},null,{"$f":"IF(ISERROR(MATCH(Frachtsatz2,waybilldata!$A:$A,0)),\"\",VLOOKUP(Frachtsatz2,waybilldata!$A:$V,6))","v":""},null,1,{"$f":"IF(ISERROR(MATCH(Frachtsatz2,waybilldata!$A:$A,0)),\"\",VLOOKUP(Frachtsatz2,waybilldata!$A:$V,3))","v":""},{"$f":"IF(ISERROR(MATCH(Frachtsatz2,waybilldata!$A:$A,0)),\"\",VLOOKUP(Frachtsatz2,waybilldata!$A:$V,4))","v":""},{"$f":"IF(ISERROR(MATCH(Frachtsatz2,waybilldata!$A:$A,0)),\"\",VLOOKUP(Frachtsatz2,waybilldata!$A:$V,5))","v":""},{"$f":"IF(ISERROR(MATCH(Frachtsatz2,waybilldata!$A:$A,0)),\"\",VLOOKUP(Frachtsatz2,waybilldata!$A:$V,20))","v":""},{"$f":"IF(ISERROR(MATCH(Frachtsatz2,waybilldata!$A:$A,0)),\"\",VLOOKUP(Frachtsatz2,waybilldata!$A:$V,1))","v":""},null,null,"Lading:","From:","VIA:",{"$f":"IF(ISERROR(MATCH(Frachtsatz2,waybilldata!$A:$A,0)),\"\",VLOOKUP(Frachtsatz2,waybilldata!$A:$V,11))","v":""},"To:",{"$f":"IF(ISERROR(MATCH(Frachtsatz2,waybilldata!$A:$A,0)),\"\",VLOOKUP(Frachtsatz2,waybilldata!$A:$V,2))","v":""},{"$f":"IF(ISERROR(MATCH(Frachtsatz2,waybilldata!$A:$A,0)),\"\",VLOOKUP(Frachtsatz2,waybilldata!$A:$V,6))","v":""},null,{"$f":"IF(ISERROR(MATCH(Frachtsatz3,waybilldata!$A:$A,0)),\"\",VLOOKUP(Frachtsatz3,waybilldata!$A:$V,6))","v":""},null,1,{"$f":"IF(ISERROR(MATCH(Frachtsatz3,waybilldata!$A:$A,0)),\"\",VLOOKUP(Frachtsatz3,waybilldata!$A:$V,3))","v":""},{"$f":"IF(ISERROR(MATCH(Frachtsatz3,waybilldata!$A:$A,0)),\"\",VLOOKUP(Frachtsatz3,waybilldata!$A:$V,4))","v":""},{"$f":"IF(ISERROR(MATCH(Frachtsatz3,waybilldata!$A:$A,0)),\"\",VLOOKUP(Frachtsatz3,waybilldata!$A:$V,5))","v":""},{"$f":"IF(ISERROR(MATCH(Frachtsatz3,waybilldata!$A:$A,0)),\"\",VLOOKUP(Frachtsatz3,waybilldata!$A:$V,20))","v":""},{"$f":"IF(ISERROR(MATCH(Frachtsatz3,waybilldata!$A:$A,0)),\"\",VLOOKUP(Frachtsatz3,waybilldata!$A:$V,1))","v":""},null,null,"Lading:","From:","VIA:",{"$f":"IF(ISERROR(MATCH(Frachtsatz3,waybilldata!$A:$A,0)),\"\",VLOOKUP(Frachtsatz3,waybilldata!$A:$V,11))","v":""},"To:",{"$f":"IF(ISERROR(MATCH(Frachtsatz3,waybilldata!$A:$A,0)),\"\",VLOOKUP(Frachtsatz3,waybilldata!$A:$V,2))","v":""},{"$f":"IF(ISERROR(MATCH(Frachtsatz3,waybilldata!$A:$A,0)),\"\",VLOOKUP(Frachtsatz3,waybilldata!$A:$V,6))","v":""}]
[null,null,{"$f":"IF(ISERROR(MATCH(Frachtsatz1,waybilldata!$A:$A,0)),\"\",VLOOKUP(Frachtsatz1,waybilldata!$A:$V,2))","v":""},null,null,null,null,{"$f":"IF(ISERROR(MATCH(Frachtsatz1,waybilldata!$A:$A,0)),\"\",VLOOKUP(Frachtsatz1,waybilldata!$A:$V,7))","v":""},{"$f":"IF(ISERROR(MATCH(Frachtsatz1,waybilldata!$A:$A,0)),\"\",VLOOKUP(Frachtsatz1,waybilldata!$A:$V,1))","v":""},null,{"$f":"IF(ISERROR(MATCH(Frachtsatz1,waybilldata!$A:$A,0)),\"\",VLOOKUP(Frachtsatz1,waybilldata!$A:$V,12))","v":""},{"$f":"IF(ISERROR(MATCH(Frachtsatz1,waybilldata!$A:$A,0)),\"\",VLOOKUP(Frachtsatz1,waybilldata!$A:$V,3))","v":""},{"$f":"IF(ISERROR(MATCH(Frachtsatz1,waybilldata!$A:$A,0)),\"\",VLOOKUP(Frachtsatz1,waybilldata!$A:$V,8))","v":""},null,{"$f":"IF(ISERROR(MATCH(Frachtsatz1,waybilldata!$A:$A,0)),\"\",VLOOKUP(Frachtsatz1,waybilldata!$A:$V,10))","v":""},null,null,null,null,null,{"$f":"IF(ISERROR(MATCH(Frachtsatz2,waybilldata!$A:$A,0)),\"\",VLOOKUP(Frachtsatz2,waybilldata!$A:$V,2))","v":""},null,null,null,null,{"$f":"IF(ISERROR(MATCH(Frachtsatz2,waybilldata!$A:$A,0)),\"\",VLOOKUP(Frachtsatz2,waybilldata!$A:$V,7))","v":""},{"$f":"IF(ISERROR(MATCH(Frachtsatz2,waybilldata!$A:$A,0)),\"\",VLOOKUP(Frachtsatz2,waybilldata!$A:$V,1))","v":""},null,{"$f":"IF(ISERROR(MATCH(Frachtsatz2,waybilldata!$A:$A,0)),\"\",VLOOKUP(Frachtsatz2,waybilldata!$A:$V,12))","v":""},{"$f":"IF(ISERROR(MATCH(Frachtsatz2,waybilldata!$A:$A,0)),\"\",VLOOKUP(Frachtsatz2,waybilldata!$A:$V,3))","v":""},{"$f":"IF(ISERROR(MATCH(Frachtsatz2,waybilldata!$A:$A,0)),\"\",VLOOKUP(Frachtsatz2,waybilldata!$A:$V,8))","v":""},null,{"$f":"IF(ISERROR(MATCH(Frachtsatz2,waybilldata!$A:$A,0)),\"\",VLOOKUP(Frachtsatz2,waybilldata!$A:$V,10))","v":""},null,null,null,null,null,{"$f":"IF(ISERROR(MATCH(Frachtsatz3,waybilldata!$A:$A,0)),\"\",VLOOKUP(Frachtsatz3,waybilldata!$A:$V,2))","v":""},null,null,null,null,{"$f":"IF(ISERROR(MATCH(Frachtsatz3,waybilldata!$A:$A,0)),\"\",VLOOKUP(Frachtsatz3,waybilldata!$A:$V,7))","v":""},{"$f":"IF(ISERROR(MATCH(Frachtsatz3,waybilldata!$A:$A,0)),\"\",VLOOKUP(Frachtsatz3,waybilldata!$A:$V,1))","v":""},null,{"$f":"IF(ISERROR(MATCH(Frachtsatz3,waybilldata!$A:$A,0)),\"\",VLOOKUP(Frachtsatz3,waybilldata!$A:$V,12))","v":""},{"$f":"IF(ISERROR(MATCH(Frachtsatz3,waybilldata!$A:$A,0)),\"\",VLOOKUP(Frachtsatz3,waybilldata!$A:$V,3))","v":""},{"$f":"IF(ISERROR(MATCH(Frachtsatz3,waybilldata!$A:$A,0)),\"\",VLOOKUP(Frachtsatz3,waybilldata!$A:$V,8))","v":""},null,{"$f":"IF(ISERROR(MATCH(Frachtsatz3,waybilldata!$A:$A,0)),\"\",VLOOKUP(Frachtsatz3,waybilldata!$A:$V,10))","v":""}]
[]
[null,null,null,"To:",null,"VIA:","From","Lading",null,null,null,null,null,null,null,2,null,null,null,null,null,"To:",null,"VIA:","From","Lading",null,null,null,null,null,null,null,2,null,null,null,null,null,"To:",null,"VIA:","From","Lading",null,null,null,null,null,null,null,2]
[]
[null,null,"Column Width"]
[null,null,3,2,1.57,2,3,1.71,1,null,null,null,null,null,null,null,null,null,null,null,3,2,1.57,2,3,1.71,1,null,null,null,null,null,null,null,null,null,null,null,3,2,1.57,2,3,1.71,1]

{"sheet":"waybill back 3-4","index":3,"n_rows":20,"n_cols":56,"rows_kept":20,"cut":false,"hidden":false,"merged":[[2,48,4,48],[1,52,4,53],[2,7,3,7],[6,7,7,7],[9,52,12,53],[13,52,16,53],[1,0,4,1],[5,0,8,1],[9,0,12,1],[13,0,16,1],[1,18,4,19],[5,18,8,19],[9,18,12,19],[13,18,16,19],[1,16,4,17],[5,16,8,17],[9,16,12,17],[13,16,16,17],[5,49,8,49],[9,49,12,49],[13,49,16,49],[1,40,4,40],[2,9,3,9],[5,21,7,21],[1,24,3,24],[2,26,3,26],[1,21,3,21],[2,43,3,43],[6,43,7,43],[10,45,11,45],[9,23,11,23],[10,43,11,43],[14,43,15,43],[14,44,15,44],[10,44,11,44],[5,24,7,24],[1,36,4,37],[5,36,8,37],[1,34,4,35],[5,34,8,35],[5,40,8,40],[5,22,8,22],[2,25,3,25],[6,25,7,25],[9,22,12,22],[13,41,15,41],[9,31,12,31],[13,31,16,31],[1,22,4,22],[1,15,3,15],[1,13,4,13],[2,14,4,14],[5,13,8,13],[9,13,12,13],[10,11,12,11],[10,12,12,12],[10,14,12,14],[9,21,11,21],[10,20,12,20],[14,48,16,48],[10,32,12,32],[9,39,11,39],[10,28,12,28],[10,47,12,47],[10,48,12,48],[13,39,15,39],[10,30,12,30],[13,40,16,40],[9,36,12,37],[9,34,12,35],[9,40,12,40],[10,29,12,29],[14,28,16,28],[14,29,16,29],[2,54,2,56],[5,33,7,33],[6,54,6,56],[7,54,7,56],[8,54,8,56],[13,51,15,51],[9,51,11,51],[5,51,7,51],[1,51,3,51],[14,45,15,45],[9,41,11,41],[9,33,11,33],[2,46,4,46],[9,42,11,42],[13,42,15,42],[1,49,4,49],[14,46,16,46],[14,47,16,47],[10,50,12,50],[10,46,12,46],[13,33,15,33],[13,36,16,37],[13,34,16,35],[14,50,16,50],[6,28,8,28],[5,41,7,41],[1,4,4,4],[2,47,4,47],[1,23,3,23],[1,54,1,56],[2,29,4,29],[2,30,4,30],[1,39,3,39],[3,54,3,56],[4,54,4,56],[5,54,5,56],[6,38,8,38],[2,38,4,38],[2,45,3,45],[6,45,7,45],[2,32,4,32],[1,31,4,31],[1,41,3,41],[1,42,3,42],[2,50,4,50],[6,50,8,50],[6,32,8,32],[5,52,8,53],[1,6,3,6],[5,6,7,6],[6,48,8,48],[5,42,7,42],[6,29,8,29],[5,39,7,39],[6,44,7,44],[5,31,8,31],[2,44,3,44],[6,47,8,47],[1,33,3,33],[6,30,8,30],[6,46,8,46],[5,23,7,23],[6,26,7,26],[2,28,4,28],[2,27,3,27],[6,27,7,27],[2,8,3,8],[6,8,7,8],[2,11,4,11],[2,10,4,10],[2,12,4,12],[2,20,4,20],[5,3,7,3],[5,5,7,5],[13,15,15,15],[13,21,15,21],[14,20,16,20],[13,22,16,22],[13,24,15,24],[9,24,11,24],[10,25,11,25],[14,25,15,25],[6,10,8,10],[6,11,8,11],[6,12,8,12],[5,15,7,15],[6,14,8,14],[6,20,8,20],[6,9,7,9],[5,4,8,4],[14,26,15,26],[14,38,16,38],[10,38,12,38],[10,26,11,26],[14,30,16,30],[14,32,16,32],[10,7,11,7],[14,7,15,7],[9,15,11,15],[14,27,15,27],[10,27,11,27],[10,8,11,8],[14,2,16,2],[2,2,4,2],[6,2,8,2],[10,2,12,2],[14,11,16,11],[14,12,16,12],[13,23,15,23],[13,3,15,3],[13,5,15,5],[13,6,15,6],[9,4,12,4],[10,9,11,9],[9,3,11,3],[9,5,11,5],[9,6,11,6],[10,10,12,10],[14,8,15,8],[13,4,16,4],[14,9,15,9],[14,10,16,10],[13,13,16,13],[14,14,16,14],[1,3,3,3],[1,5,3,5]]}
[]
[{"$f":"IF(ISERROR(MATCH(Frachtsatz1,waybilldata!$A:$A,0)),\"\",VLOOKUP(Frachtsatz1,waybilldata!$A:$V,6))","v":""},null,3,{"$f":"IF(ISERROR(MATCH(Frachtsatz1,waybilldata!$A:$A,0)),\"\",VLOOKUP(Frachtsatz1,waybilldata!$A:$V,15))","v":""},{"$f":"IF(ISERROR(MATCH(Frachtsatz1,waybilldata!$A:$A,0)),\"\",VLOOKUP(Frachtsatz1,waybilldata!$A:$V,16))","v":""},{"$f":"IF(ISERROR(MATCH(Frachtsatz1,waybilldata!$A:$A,0)),\"\",VLOOKUP(Frachtsatz1,waybilldata!$A:$V,13))","v":""},{"$f":"IF(ISERROR(MATCH(Frachtsatz1,waybilldata!$A:$A,0)),\"\",VLOOKUP(Frachtsatz1,waybilldata!$A:$V,10))","v":""},{"$f":"IF(ISERROR(MATCH(Frachtsatz1,waybilldata!$A:$A,0)),\"\",VLOOKUP(Frachtsatz1,waybilldata!$A:$V,1))","v":""},null,null,"Lading","From","VIA:",{"$f":"IF(ISERROR(MATCH(Frachtsatz1,waybilldata!$A:$A,0)),\"\",VLOOKUP(Frachtsatz1,waybilldata!$A:$V,21))","v":""},"To:",{"$f":"IF(ISERROR(MATCH(Frachtsatz1,waybilldata!$A:$A,0)),\"\",VLOOKUP(Frachtsatz1,waybilldata!$A:$V,2))","v":""},{"$f":"IF(ISERROR(MATCH(Frachtsatz1,waybilldata!$A:$A,0)),\"\",VLOOKUP(Frachtsatz1,waybilldata!$A:$V,19))","v":""},null,{"$f":"IF(ISERROR(MATCH(Frachtsatz2,waybilldata!$A:$A,0)),\"\",VLOOKUP(Frachtsatz2,waybilldata!$A:$V,6))","v":""},null,3,{"$f":"IF(ISERROR(MATCH(Frachtsatz2,waybilldata!$A:$A,0)),\"\",VLOOKUP(Frachtsatz2,waybilldata!$A:$V,15))","v":""},{"$f":"IF(ISERROR(MATCH(Frachtsatz2,waybilldata!$A:$A,0)),\"\",VLOOKUP(Frachtsatz2,waybilldata!$A:$V,16))","v":""},{"$f":"IF(ISERROR(MATCH(Frachtsatz2,waybilldata!$A:$A,0)),\"\",VLOOKUP(Frachtsatz2,waybilldata!$A:$V,13))","v":""},{"$f":"IF(ISERROR(MATCH(Frachtsatz2,waybilldata!$A:$A,0)),\"\",VLOOKUP(Frachtsatz2,waybilldata!$A:$V,10))","v":""},{"$f":"IF(ISERROR(MATCH(Frachtsatz2,waybilldata!$A:$A,0)),\"\",VLOOKUP(Frachtsatz2,waybilldata!$A:$V,1))","v":""},null,null,"Lading","From","VIA:",{"$f":"IF(ISERROR(MATCH(Frachtsatz2,waybilldata!$A:$A,0)),\"\",VLOOKUP(Frachtsatz2,waybilldata!$A:$V,21))","v":""},"To:",{"$f":"IF(ISERROR(MATCH(Frachtsatz2,waybilldata!$A:$A,0)),\"\",VLOOKUP(Frachtsatz2,waybilldata!$A:$V,2))","v":""},{"$f":"IF(ISERROR(MATCH(Frachtsatz2,waybilldata!$A:$A,0)),\"\",VLOOKUP(Frachtsatz2,waybilldata!$A:$V,19))","v":""},null,{"$f":"IF(ISERROR(MATCH(Frachtsatz3,waybilldata!$A:$A,0)),\"\",VLOOKUP(Frachtsatz3,waybilldata!$A:$V,6))","v":""},null,3,{"$f":"IF(ISERROR(MATCH(Frachtsatz3,waybilldata!$A:$A,0)),\"\",VLOOKUP(Frachtsatz3,waybilldata!$A:$V,15))","v":""},{"$f":"IF(ISERROR(MATCH(Frachtsatz3,waybilldata!$A:$A,0)),\"\",VLOOKUP(Frachtsatz3,waybilldata!$A:$V,16))","v":""},{"$f":"IF(ISERROR(MATCH(Frachtsatz3,waybilldata!$A:$A,0)),\"\",VLOOKUP(Frachtsatz3,waybilldata!$A:$V,13))","v":""},{"$f":"IF(ISERROR(MATCH(Frachtsatz3,waybilldata!$A:$A,0)),\"\",VLOOKUP(Frachtsatz3,waybilldata!$A:$V,10))","v":""},{"$f":"IF(ISERROR(MATCH(Frachtsatz3,waybilldata!$A:$A,0)),\"\",VLOOKUP(Frachtsatz3,waybilldata!$A:$V,1))","v":""},null,null,"Lading","From","VIA:",{"$f":"IF(ISERROR(MATCH(Frachtsatz3,waybilldata!$A:$A,0)),\"\",VLOOKUP(Frachtsatz3,waybilldata!$A:$V,21))","v":""},"To:",{"$f":"IF(ISERROR(MATCH(Frachtsatz3,waybilldata!$A:$A,0)),\"\",VLOOKUP(Frachtsatz3,waybilldata!$A:$V,2))","v":""},{"$f":"IF(ISERROR(MATCH(Frachtsatz3,waybilldata!$A:$A,0)),\"\",VLOOKUP(Frachtsatz3,waybilldata!$A:$V,6))","v":""}]
[null,null,{"$f":"IF(ISERROR(MATCH(Frachtsatz1,waybilldata!$A:$A,0)),\"\",VLOOKUP(Frachtsatz1,waybilldata!$A:$V,2))","v":""},null,null,null,null,{"$f":"IF(ISERROR(MATCH(Frachtsatz1,waybilldata!$A:$A,0)),\"\",VLOOKUP(Frachtsatz1,waybilldata!$A:$V,17))","v":""},null,null,{"$f":"IF(ISERROR(MATCH(Frachtsatz1,waybilldata!$A:$A,0)),\"\",VLOOKUP(Frachtsatz1,waybilldata!$A:$V,22))","v":""},{"$f":"IF(ISERROR(MATCH(Frachtsatz1,waybilldata!$A:$A,0)),\"\",VLOOKUP(Frachtsatz1,waybilldata!$A:$V,15))","v":""},{"$f":"IF(ISERROR(MATCH(Frachtsatz1,waybilldata!$A:$A,0)),\"\",VLOOKUP(Frachtsatz1,waybilldata!$A:$V,18))","v":""},null,{"$f":"IF(ISERROR(MATCH(Frachtsatz1,waybilldata!$A:$A,0)),\"\",VLOOKUP(Frachtsatz1,waybilldata!$A:$V,20))","v":""},null,null,null,null,null,{"$f":"IF(ISERROR(MATCH(Frachtsatz2,waybilldata!$A:$A,0)),\"\",VLOOKUP(Frachtsatz2,waybilldata!$A:$V,2))","v":""},null,null,null,null,{"$f":"IF(ISERROR(MATCH(Frachtsatz2,waybilldata!$A:$A,0)),\"\",VLOOKUP(Frachtsatz2,waybilldata!$A:$V,17))","v":""},null,null,{"$f":"IF(ISERROR(MATCH(Frachtsatz2,waybilldata!$A:$A,0)),\"\",VLOOKUP(Frachtsatz2,waybilldata!$A:$V,22))","v":""},{"$f":"IF(ISERROR(MATCH(Frachtsatz2,waybilldata!$A:$A,0)),\"\",VLOOKUP(Frachtsatz2,waybilldata!$A:$V,15))","v":""},{"$f":"IF(ISERROR(MATCH(Frachtsatz2,waybilldata!$A:$A,0)),\"\",VLOOKUP(Frachtsatz2,waybilldata!$A:$V,18))","v":""},null,{"$f":"IF(ISERROR(MATCH(Frachtsatz2,waybilldata!$A:$A,0)),\"\",VLOOKUP(Frachtsatz2,waybilldata!$A:$V,20))","v":""},null,null,null,null,null,{"$f":"IF(ISERROR(MATCH(Frachtsatz3,waybilldata!$A:$A,0)),\"\",VLOOKUP(Frachtsatz3,waybilldata!$A:$V,2))","v":""},null,null,null,null,{"$f":"IF(ISERROR(MATCH(Frachtsatz3,waybilldata!$A:$A,0)),\"\",VLOOKUP(Frachtsatz3,waybilldata!$A:$V,17))","v":""},null,null,{"$f":"IF(ISERROR(MATCH(Frachtsatz3,waybilldata!$A:$A,0)),\"\",VLOOKUP(Frachtsatz3,waybilldata!$A:$V,22))","v":""},{"$f":"IF(ISERROR(MATCH(Frachtsatz3,waybilldata!$A:$A,0)),\"\",VLOOKUP(Frachtsatz3,waybilldata!$A:$V,15))","v":""},{"$f":"IF(ISERROR(MATCH(Frachtsatz3,waybilldata!$A:$A,0)),\"\",VLOOKUP(Frachtsatz3,waybilldata!$A:$V,18))","v":""},null,{"$f":"IF(ISERROR(MATCH(Frachtsatz3,waybilldata!$A:$A,0)),\"\",VLOOKUP(Frachtsatz3,waybilldata!$A:$V,20))","v":""}]
[]
[null,null,null,"To:",null,"VIA:","From","Lading",null,null,null,null,null,null,null,4,null,null,null,null,null,"To:",null,"VIA:","From","Lading",null,null,null,null,null,null,null,4,null,null,null,null,null,"To:",null,"VIA:","From","Lading",null,null,null,null,null,null,null,4]
[{"$f":"IF(ISERROR(MATCH(Frachtsatz4,waybilldata!$A:$A,0)),\"\",VLOOKUP(Frachtsatz4,waybilldata!$A:$V,6))","v":""},null,3,{"$f":"IF(ISERROR(MATCH(Frachtsatz4,waybilldata!$A:$A,0)),\"\",VLOOKUP(Frachtsatz4,waybilldata!$A:$V,15))","v":""},{"$f":"IF(ISERROR(MATCH(Frachtsatz4,waybilldata!$A:$A,0)),\"\",VLOOKUP(Frachtsatz4,waybilldata!$A:$V,16))","v":""},{"$f":"IF(ISERROR(MATCH(Frachtsatz4,waybilldata!$A:$A,0)),\"\",VLOOKUP(Frachtsatz4,waybilldata!$A:$V,13))","v":""},{"$f":"IF(ISERROR(MATCH(Frachtsatz4,waybilldata!$A:$A,0)),\"\",VLOOKUP(Frachtsatz4,waybilldata!$A:$V,10))","v":""},{"$f":"IF(ISERROR(MATCH(Frachtsatz4,waybilldata!$A:$A,0)),\"\",VLOOKUP(Frachtsatz4,waybilldata!$A:$V,1))","v":""},null,null,"Lading","From","VIA:",{"$f":"IF(ISERROR(MATCH(Frachtsatz4,waybilldata!$A:$A,0)),\"\",VLOOKUP(Frachtsatz4,waybilldata!$A:$V,21))","v":""},"To:",{"$f":"IF(ISERROR(MATCH(Frachtsatz4,waybilldata!$A:$A,0)),\"\",VLOOKUP(Frachtsatz4,waybilldata!$A:$V,2))","v":""},{"$f":"IF(ISERROR(MATCH(Frachtsatz4,waybilldata!$A:$A,0)),\"\",VLOOKUP(Frachtsatz4,waybilldata!$A:$V,19))","v":""},null,{"$f":"IF(ISERROR(MATCH(Frachtsatz5,waybilldata!$A:$A,0)),\"\",VLOOKUP(Frachtsatz5,waybilldata!$A:$V,6))","v":""},null,3,{"$f":"IF(ISERROR(MATCH(Frachtsatz5,waybilldata!$A:$A,0)),\"\",VLOOKUP(Frachtsatz5,waybilldata!$A:$V,15))","v":""},{"$f":"IF(ISERROR(MATCH(Frachtsatz5,waybilldata!$A:$A,0)),\"\",VLOOKUP(Frachtsatz5,waybilldata!$A:$V,16))","v":""},{"$f":"IF(ISERROR(MATCH(Frachtsatz5,waybilldata!$A:$A,0)),\"\",VLOOKUP(Frachtsatz5,waybilldata!$A:$V,13))","v":""},{"$f":"IF(ISERROR(MATCH(Frachtsatz5,waybilldata!$A:$A,0)),\"\",VLOOKUP(Frachtsatz5,waybilldata!$A:$V,10))","v":""},{"$f":"IF(ISERROR(MATCH(Frachtsatz5,waybilldata!$A:$A,0)),\"\",VLOOKUP(Frachtsatz5,waybilldata!$A:$V,1))","v":""},null,null,"Lading","From","VIA:",{"$f":"IF(ISERROR(MATCH(Frachtsatz5,waybilldata!$A:$A,0)),\"\",VLOOKUP(Frachtsatz5,waybilldata!$A:$V,21))","v":""},"To:",{"$f":"IF(ISERROR(MATCH(Frachtsatz5,waybilldata!$A:$A,0)),\"\",VLOOKUP(Frachtsatz5,waybilldata!$A:$V,2))","v":""},{"$f":"IF(ISERROR(MATCH(Frachtsatz2,waybilldata!$A:$A,0)),\"\",VLOOKUP(Frachtsatz2,waybilldata!$A:$V,19))","v":""},null,{"$f":"IF(ISERROR(MATCH(Frachtsatz6,waybilldata!$A:$A,0)),\"\",VLOOKUP(Frachtsatz6,waybilldata!$A:$V,6))","v":""},null,3,{"$f":"IF(ISERROR(MATCH(Frachtsatz6,waybilldata!$A:$A,0)),\"\",VLOOKUP(Frachtsatz6,waybilldata!$A:$V,15))","v":""},{"$f":"IF(ISERROR(MATCH(Frachtsatz6,waybilldata!$A:$A,0)),\"\",VLOOKUP(Frachtsatz6,waybilldata!$A:$V,16))","v":""},{"$f":"IF(ISERROR(MATCH(Frachtsatz6,waybilldata!$A:$A,0)),\"\",VLOOKUP(Frachtsatz6,waybilldata!$A:$V,13))","v":""},{"$f":"IF(ISERROR(MATCH(Frachtsatz6,waybilldata!$A:$A,0)),\"\",VLOOKUP(Frachtsatz6,waybilldata!$A:$V,10))","v":""},{"$f":"IF(ISERROR(MATCH(Frachtsatz6,waybilldata!$A:$A,0)),\"\",VLOOKUP(Frachtsatz6,waybilldata!$A:$V,1))","v":""},null,null,"Lading","From","VIA:",{"$f":"IF(ISERROR(MATCH(Frachtsatz6,waybilldata!$A:$A,0)),\"\",VLOOKUP(Frachtsatz6,waybilldata!$A:$V,21))","v":""},"To:",{"$f":"IF(ISERROR(MATCH(Frachtsatz6,waybilldata!$A:$A,0)),\"\",VLOOKUP(Frachtsatz6,waybilldata!$A:$V,2))","v":""},{"$f":"IF(ISERROR(MATCH(Frachtsatz6,waybilldata!$A:$A,0)),\"\",VLOOKUP(Frachtsatz6,waybilldata!$A:$V,6))","v":""}]
[null,null,{"$f":"IF(ISERROR(MATCH(Frachtsatz4,waybilldata!$A:$A,0)),\"\",VLOOKUP(Frachtsatz4,waybilldata!$A:$V,2))","v":""},null,null,null,null,{"$f":"IF(ISERROR(MATCH(Frachtsatz4,waybilldata!$A:$A,0)),\"\",VLOOKUP(Frachtsatz4,waybilldata!$A:$V,17))","v":""},null,null,{"$f":"IF(ISERROR(MATCH(Frachtsatz4,waybilldata!$A:$A,0)),\"\",VLOOKUP(Frachtsatz4,waybilldata!$A:$V,22))","v":""},{"$f":"IF(ISERROR(MATCH(Frachtsatz4,waybilldata!$A:$A,0)),\"\",VLOOKUP(Frachtsatz4,waybilldata!$A:$V,15))","v":""},{"$f":"IF(ISERROR(MATCH(Frachtsatz4,waybilldata!$A:$A,0)),\"\",VLOOKUP(Frachtsatz4,waybilldata!$A:$V,18))","v":""},null,{"$f":"IF(ISERROR(MATCH(Frachtsatz4,waybilldata!$A:$A,0)),\"\",VLOOKUP(Frachtsatz4,waybilldata!$A:$V,20))","v":""},null,null,null,null,null,{"$f":"IF(ISERROR(MATCH(Frachtsatz5,waybilldata!$A:$A,0)),\"\",VLOOKUP(Frachtsatz5,waybilldata!$A:$V,2))","v":""},null,null,null,null,{"$f":"IF(ISERROR(MATCH(Frachtsatz5,waybilldata!$A:$A,0)),\"\",VLOOKUP(Frachtsatz5,waybilldata!$A:$V,17))","v":""},null,null,{"$f":"IF(ISERROR(MATCH(Frachtsatz5,waybilldata!$A:$A,0)),\"\",VLOOKUP(Frachtsatz5,waybilldata!$A:$V,22))","v":""},{"$f":"IF(ISERROR(MATCH(Frachtsatz5,waybilldata!$A:$A,0)),\"\",VLOOKUP(Frachtsatz5,waybilldata!$A:$V,15))","v":""},{"$f":"IF(ISERROR(MATCH(Frachtsatz5,waybilldata!$A:$A,0)),\"\",VLOOKUP(Frachtsatz5,waybilldata!$A:$V,18))","v":""},null,{"$f":"IF(ISERROR(MATCH(Frachtsatz5,waybilldata!$A:$A,0)),\"\",VLOOKUP(Frachtsatz5,waybilldata!$A:$V,20))","v":""},null,null,null,null,null,{"$f":"IF(ISERROR(MATCH(Frachtsatz6,waybilldata!$A:$A,0)),\"\",VLOOKUP(Frachtsatz6,waybilldata!$A:$V,2))","v":""},null,null,null,null,{"$f":"IF(ISERROR(MATCH(Frachtsatz6,waybilldata!$A:$A,0)),\"\",VLOOKUP(Frachtsatz6,waybilldata!$A:$V,17))","v":""},null,null,{"$f":"IF(ISERROR(MATCH(Frachtsatz6,waybilldata!$A:$A,0)),\"\",VLOOKUP(Frachtsatz6,waybilldata!$A:$V,22))","v":""},{"$f":"IF(ISERROR(MATCH(Frachtsatz6,waybilldata!$A:$A,0)),\"\",VLOOKUP(Frachtsatz6,waybilldata!$A:$V,15))","v":""},{"$f":"IF(ISERROR(MATCH(Frachtsatz6,waybilldata!$A:$A,0)),\"\",VLOOKUP(Frachtsatz6,waybilldata!$A:$V,18))","v":""},null,{"$f":"IF(ISERROR(MATCH(Frachtsatz6,waybilldata!$A:$A,0)),\"\",VLOOKUP(Frachtsatz6,waybilldata!$A:$V,20))","v":""}]
[]
[null,null,null,"To:",null,"VIA:","From","Lading",null,null,null,null,null,null,null,4,null,null,null,null,null,"To:",null,"VIA:","From","Lading",null,null,null,null,null,null,null,4,null,null,null,null,null,"To:",null,"VIA:","From","Lading",null,null,null,null,null,null,null,4]
[{"$f":"IF(ISERROR(MATCH(Frachtsatz7,waybilldata!$A:$A,0)),\"\",VLOOKUP(Frachtsatz7,waybilldata!$A:$V,6))","v":""},null,3,{"$f":"IF(ISERROR(MATCH(Frachtsatz7,waybilldata!$A:$A,0)),\"\",VLOOKUP(Frachtsatz7,waybilldata!$A:$V,15))","v":""},{"$f":"IF(ISERROR(MATCH(Frachtsatz7,waybilldata!$A:$A,0)),\"\",VLOOKUP(Frachtsatz7,waybilldata!$A:$V,16))","v":""},{"$f":"IF(ISERROR(MATCH(Frachtsatz7,waybilldata!$A:$A,0)),\"\",VLOOKUP(Frachtsatz7,waybilldata!$A:$V,13))","v":""},{"$f":"IF(ISERROR(MATCH(Frachtsatz7,waybilldata!$A:$A,0)),\"\",VLOOKUP(Frachtsatz7,waybilldata!$A:$V,10))","v":""},{"$f":"IF(ISERROR(MATCH(Frachtsatz7,waybilldata!$A:$A,0)),\"\",VLOOKUP(Frachtsatz7,waybilldata!$A:$V,1))","v":""},null,null,"Lading","From","VIA:",{"$f":"IF(ISERROR(MATCH(Frachtsatz7,waybilldata!$A:$A,0)),\"\",VLOOKUP(Frachtsatz7,waybilldata!$A:$V,21))","v":""},"To:",{"$f":"IF(ISERROR(MATCH(Frachtsatz7,waybilldata!$A:$A,0)),\"\",VLOOKUP(Frachtsatz7,waybilldata!$A:$V,2))","v":""},{"$f":"IF(ISERROR(MATCH(Frachtsatz7,waybilldata!$A:$A,0)),\"\",VLOOKUP(Frachtsatz7,waybilldata!$A:$V,19))","v":""},null,{"$f":"IF(ISERROR(MATCH(Frachtsatz8,waybilldata!$A:$A,0)),\"\",VLOOKUP(Frachtsatz8,waybilldata!$A:$V,6))","v":""},null,3,{"$f":"IF(ISERROR(MATCH(Frachtsatz8,waybilldata!$A:$A,0)),\"\",VLOOKUP(Frachtsatz8,waybilldata!$A:$V,15))","v":""},{"$f":"IF(ISERROR(MATCH(Frachtsatz8,waybilldata!$A:$A,0)),\"\",VLOOKUP(Frachtsatz8,waybilldata!$A:$V,16))","v":""},{"$f":"IF(ISERROR(MATCH(Frachtsatz8,waybilldata!$A:$A,0)),\"\",VLOOKUP(Frachtsatz8,waybilldata!$A:$V,13))","v":""},{"$f":"IF(ISERROR(MATCH(Frachtsatz8,waybilldata!$A:$A,0)),\"\",VLOOKUP(Frachtsatz8,waybilldata!$A:$V,10))","v":""},{"$f":"IF(ISERROR(MATCH(Frachtsatz8,waybilldata!$A:$A,0)),\"\",VLOOKUP(Frachtsatz8,waybilldata!$A:$V,1))","v":""},null,null,"Lading","From","VIA:",{"$f":"IF(ISERROR(MATCH(Frachtsatz8,waybilldata!$A:$A,0)),\"\",VLOOKUP(Frachtsatz8,waybilldata!$A:$V,21))","v":""},"To:",{"$f":"IF(ISERROR(MATCH(Frachtsatz8,waybilldata!$A:$A,0)),\"\",VLOOKUP(Frachtsatz8,waybilldata!$A:$V,2))","v":""},{"$f":"IF(ISERROR(MATCH(Frachtsatz8,waybilldata!$A:$A,0)),\"\",VLOOKUP(Frachtsatz8,waybilldata!$A:$V,19))","v":""},null,{"$f":"IF(ISERROR(MATCH(Frachtsatz9,waybilldata!$A:$A,0)),\"\",VLOOKUP(Frachtsatz9,waybilldata!$A:$V,6))","v":""},null,3,{"$f":"IF(ISERROR(MATCH(Frachtsatz9,waybilldata!$A:$A,0)),\"\",VLOOKUP(Frachtsatz9,waybilldata!$A:$V,15))","v":""},{"$f":"IF(ISERROR(MATCH(Frachtsatz9,waybilldata!$A:$A,0)),\"\",VLOOKUP(Frachtsatz9,waybilldata!$A:$V,16))","v":""},{"$f":"IF(ISERROR(MATCH(Frachtsatz9,waybilldata!$A:$A,0)),\"\",VLOOKUP(Frachtsatz9,waybilldata!$A:$V,13))","v":""},{"$f":"IF(ISERROR(MATCH(Frachtsatz9,waybilldata!$A:$A,0)),\"\",VLOOKUP(Frachtsatz9,waybilldata!$A:$V,10))","v":""},{"$f":"IF(ISERROR(MATCH(Frachtsatz9,waybilldata!$A:$A,0)),\"\",VLOOKUP(Frachtsatz9,waybilldata!$A:$V,1))","v":""},null,null,"Lading","From","VIA:",{"$f":"IF(ISERROR(MATCH(Frachtsatz9,waybilldata!$A:$A,0)),\"\",VLOOKUP(Frachtsatz9,waybilldata!$A:$V,21))","v":""},"To:",{"$f":"IF(ISERROR(MATCH(Frachtsatz9,waybilldata!$A:$A,0)),\"\",VLOOKUP(Frachtsatz9,waybilldata!$A:$V,2))","v":""},{"$f":"IF(ISERROR(MATCH(Frachtsatz9,waybilldata!$A:$A,0)),\"\",VLOOKUP(Frachtsatz9,waybilldata!$A:$V,6))","v":""}]
[null,null,{"$f":"IF(ISERROR(MATCH(Frachtsatz7,waybilldata!$A:$A,0)),\"\",VLOOKUP(Frachtsatz7,waybilldata!$A:$V,2))","v":""},null,null,null,null,{"$f":"IF(ISERROR(MATCH(Frachtsatz7,waybilldata!$A:$A,0)),\"\",VLOOKUP(Frachtsatz7,waybilldata!$A:$V,17))","v":""},null,null,{"$f":"IF(ISERROR(MATCH(Frachtsatz7,waybilldata!$A:$A,0)),\"\",VLOOKUP(Frachtsatz7,waybilldata!$A:$V,22))","v":""},{"$f":"IF(ISERROR(MATCH(Frachtsatz7,waybilldata!$A:$A,0)),\"\",VLOOKUP(Frachtsatz7,waybilldata!$A:$V,15))","v":""},{"$f":"IF(ISERROR(MATCH(Frachtsatz7,waybilldata!$A:$A,0)),\"\",VLOOKUP(Frachtsatz7,waybilldata!$A:$V,18))","v":""},null,{"$f":"IF(ISERROR(MATCH(Frachtsatz7,waybilldata!$A:$A,0)),\"\",VLOOKUP(Frachtsatz7,waybilldata!$A:$V,20))","v":""},null,null,null,null,null,{"$f":"IF(ISERROR(MATCH(Frachtsatz8,waybilldata!$A:$A,0)),\"\",VLOOKUP(Frachtsatz8,waybilldata!$A:$V,2))","v":""},null,null,null,null,{"$f":"IF(ISERROR(MATCH(Frachtsatz8,waybilldata!$A:$A,0)),\"\",VLOOKUP(Frachtsatz8,waybilldata!$A:$V,17))","v":""},null,null,{"$f":"IF(ISERROR(MATCH(Frachtsatz8,waybilldata!$A:$A,0)),\"\",VLOOKUP(Frachtsatz8,waybilldata!$A:$V,22))","v":""},{"$f":"IF(ISERROR(MATCH(Frachtsatz8,waybilldata!$A:$A,0)),\"\",VLOOKUP(Frachtsatz8,waybilldata!$A:$V,15))","v":""},{"$f":"IF(ISERROR(MATCH(Frachtsatz8,waybilldata!$A:$A,0)),\"\",VLOOKUP(Frachtsatz8,waybilldata!$A:$V,18))","v":""},null,{"$f":"IF(ISERROR(MATCH(Frachtsatz8,waybilldata!$A:$A,0)),\"\",VLOOKUP(Frachtsatz8,waybilldata!$A:$V,20))","v":""},null,null,null,null,null,{"$f":"IF(ISERROR(MATCH(Frachtsatz9,waybilldata!$A:$A,0)),\"\",VLOOKUP(Frachtsatz9,waybilldata!$A:$V,2))","v":""},null,null,null,null,{"$f":"IF(ISERROR(MATCH(Frachtsatz9,waybilldata!$A:$A,0)),\"\",VLOOKUP(Frachtsatz9,waybilldata!$A:$V,17))","v":""},null,null,{"$f":"IF(ISERROR(MATCH(Frachtsatz9,waybilldata!$A:$A,0)),\"\",VLOOKUP(Frachtsatz9,waybilldata!$A:$V,22))","v":""},{"$f":"IF(ISERROR(MATCH(Frachtsatz9,waybilldata!$A:$A,0)),\"\",VLOOKUP(Frachtsatz9,waybilldata!$A:$V,15))","v":""},{"$f":"IF(ISERROR(MATCH(Frachtsatz9,waybilldata!$A:$A,0)),\"\",VLOOKUP(Frachtsatz9,waybilldata!$A:$V,18))","v":""},null,{"$f":"IF(ISERROR(MATCH(Frachtsatz9,waybilldata!$A:$A,0)),\"\",VLOOKUP(Frachtsatz9,waybilldata!$A:$V,20))","v":""}]
[]
[null,null,null,"To:",null,"VIA:","From","Lading",null,null,null,null,null,null,null,4,null,null,null,null,null,"To:",null,"VIA:","From","Lading",null,null,null,null,null,null,null,4,null,null,null,null,null,"To:",null,"VIA:","From","Lading",null,null,null,null,null,null,null,4,null,null,null,"MOVE 3"]
[{"$f":"IF(ISERROR(MATCH(Frachtsatz10,waybilldata!$A:$A,0)),\"\",VLOOKUP(Frachtsatz10,waybilldata!$A:$V,6))","v":""},null,3,{"$f":"IF(ISERROR(MATCH(Frachtsatz10,waybilldata!$A:$A,0)),\"\",VLOOKUP(Frachtsatz10,waybilldata!$A:$V,15))","v":""},{"$f":"IF(ISERROR(MATCH(Frachtsatz10,waybilldata!$A:$A,0)),\"\",VLOOKUP(Frachtsatz10,waybilldata!$A:$V,16))","v":""},{"$f":"IF(ISERROR(MATCH(Frachtsatz10,waybilldata!$A:$A,0)),\"\",VLOOKUP(Frachtsatz10,waybilldata!$A:$V,13))","v":""},{"$f":"IF(ISERROR(MATCH(Frachtsatz10,waybilldata!$A:$A,0)),\"\",VLOOKUP(Frachtsatz10,waybilldata!$A:$V,10))","v":""},{"$f":"IF(ISERROR(MATCH(Frachtsatz10,waybilldata!$A:$A,0)),\"\",VLOOKUP(Frachtsatz10,waybilldata!$A:$V,1))","v":""},null,null,"Lading","From","VIA:",{"$f":"IF(ISERROR(MATCH(Frachtsatz10,waybilldata!$A:$A,0)),\"\",VLOOKUP(Frachtsatz10,waybilldata!$A:$V,21))","v":""},"To:",{"$f":"IF(ISERROR(MATCH(Frachtsatz10,waybilldata!$A:$A,0)),\"\",VLOOKUP(Frachtsatz10,waybilldata!$A:$V,2))","v":""},{"$f":"IF(ISERROR(MATCH(Frachtsatz10,waybilldata!$A:$A,0)),\"\",VLOOKUP(Frachtsatz10,waybilldata!$A:$V,19))","v":""},null,{"$f":"IF(ISERROR(MATCH(Frachtsatz11,waybilldata!$A:$A,0)),\"\",VLOOKUP(Frachtsatz11,waybilldata!$A:$V,6))","v":""},null,3,{"$f":"IF(ISERROR(MATCH(Frachtsatz11,waybilldata!$A:$A,0)),\"\",VLOOKUP(Frachtsatz11,waybilldata!$A:$V,15))","v":""},{"$f":"IF(ISERROR(MATCH(Frachtsatz11,waybilldata!$A:$A,0)),\"\",VLOOKUP(Frachtsatz11,waybilldata!$A:$V,16))","v":""},{"$f":"IF(ISERROR(MATCH(Frachtsatz11,waybilldata!$A:$A,0)),\"\",VLOOKUP(Frachtsatz11,waybilldata!$A:$V,13))","v":""},{"$f":"IF(ISERROR(MATCH(Frachtsatz11,waybilldata!$A:$A,0)),\"\",VLOOKUP(Frachtsatz11,waybilldata!$A:$V,10))","v":""},{"$f":"IF(ISERROR(MATCH(Frachtsatz11,waybilldata!$A:$A,0)),\"\",VLOOKUP(Frachtsatz11,waybilldata!$A:$V,1))","v":""},null,null,"Lading","From","VIA:",{"$f":"IF(ISERROR(MATCH(Frachtsatz11,waybilldata!$A:$A,0)),\"\",VLOOKUP(Frachtsatz11,waybilldata!$A:$V,21))","v":""},"To:",{"$f":"IF(ISERROR(MATCH(Frachtsatz11,waybilldata!$A:$A,0)),\"\",VLOOKUP(Frachtsatz11,waybilldata!$A:$V,2))","v":""},{"$f":"IF(ISERROR(MATCH(Frachtsatz11,waybilldata!$A:$A,0)),\"\",VLOOKUP(Frachtsatz11,waybilldata!$A:$V,19))","v":""},null,{"$f":"IF(ISERROR(MATCH(Frachtsatz12,waybilldata!$A:$A,0)),\"\",VLOOKUP(Frachtsatz12,waybilldata!$A:$V,6))","v":""},null,3,{"$f":"IF(ISERROR(MATCH(Frachtsatz12,waybilldata!$A:$A,0)),\"\",VLOOKUP(Frachtsatz12,waybilldata!$A:$V,15))","v":""},{"$f":"IF(ISERROR(MATCH(Frachtsatz12,waybilldata!$A:$A,0)),\"\",VLOOKUP(Frachtsatz12,waybilldata!$A:$V,16))","v":""},{"$f":"IF(ISERROR(MATCH(Frachtsatz12,waybilldata!$A:$A,0)),\"\",VLOOKUP(Frachtsatz12,waybilldata!$A:$V,13))","v":""},{"$f":"IF(ISERROR(MATCH(Frachtsatz12,waybilldata!$A:$A,0)),\"\",VLOOKUP(Frachtsatz12,waybilldata!$A:$V,10))","v":""},{"$f":"IF(ISERROR(MATCH(Frachtsatz12,waybilldata!$A:$A,0)),\"\",VLOOKUP(Frachtsatz12,waybilldata!$A:$V,1))","v":""},null,null,"Lading","From","VIA:",{"$f":"IF(ISERROR(MATCH(Frachtsatz12,waybilldata!$A:$A,0)),\"\",VLOOKUP(Frachtsatz12,waybilldata!$A:$V,21))","v":""},"To:",{"$f":"IF(ISERROR(MATCH(Frachtsatz12,waybilldata!$A:$A,0)),\"\",VLOOKUP(Frachtsatz12,waybilldata!$A:$V,2))","v":""},{"$f":"IF(ISERROR(MATCH(Frachtsatz12,waybilldata!$A:$A,0)),\"\",VLOOKUP(Frachtsatz12,waybilldata!$A:$V,6))","v":""},null,null,"MOVE 4"]
[null,null,{"$f":"IF(ISERROR(MATCH(Frachtsatz10,waybilldata!$A:$A,0)),\"\",VLOOKUP(Frachtsatz10,waybilldata!$A:$V,2))","v":""},null,null,null,null,{"$f":"IF(ISERROR(MATCH(Frachtsatz10,waybilldata!$A:$A,0)),\"\",VLOOKUP(Frachtsatz10,waybilldata!$A:$V,17))","v":""},null,null,{"$f":"IF(ISERROR(MATCH(Frachtsatz10,waybilldata!$A:$A,0)),\"\",VLOOKUP(Frachtsatz10,waybilldata!$A:$V,22))","v":""},{"$f":"IF(ISERROR(MATCH(Frachtsatz10,waybilldata!$A:$A,0)),\"\",VLOOKUP(Frachtsatz10,waybilldata!$A:$V,15))","v":""},{"$f":"IF(ISERROR(MATCH(Frachtsatz10,waybilldata!$A:$A,0)),\"\",VLOOKUP(Frachtsatz10,waybilldata!$A:$V,18))","v":""},null,{"$f":"IF(ISERROR(MATCH(Frachtsatz10,waybilldata!$A:$A,0)),\"\",VLOOKUP(Frachtsatz10,waybilldata!$A:$V,20))","v":""},null,null,null,null,null,{"$f":"IF(ISERROR(MATCH(Frachtsatz11,waybilldata!$A:$A,0)),\"\",VLOOKUP(Frachtsatz11,waybilldata!$A:$V,2))","v":""},null,null,null,null,{"$f":"IF(ISERROR(MATCH(Frachtsatz11,waybilldata!$A:$A,0)),\"\",VLOOKUP(Frachtsatz11,waybilldata!$A:$V,17))","v":""},null,null,{"$f":"IF(ISERROR(MATCH(Frachtsatz11,waybilldata!$A:$A,0)),\"\",VLOOKUP(Frachtsatz11,waybilldata!$A:$V,22))","v":""},{"$f":"IF(ISERROR(MATCH(Frachtsatz11,waybilldata!$A:$A,0)),\"\",VLOOKUP(Frachtsatz11,waybilldata!$A:$V,15))","v":""},{"$f":"IF(ISERROR(MATCH(Frachtsatz11,waybilldata!$A:$A,0)),\"\",VLOOKUP(Frachtsatz11,waybilldata!$A:$V,18))","v":""},null,{"$f":"IF(ISERROR(MATCH(Frachtsatz11,waybilldata!$A:$A,0)),\"\",VLOOKUP(Frachtsatz11,waybilldata!$A:$V,20))","v":""},null,null,null,null,null,{"$f":"IF(ISERROR(MATCH(Frachtsatz12,waybilldata!$A:$A,0)),\"\",VLOOKUP(Frachtsatz12,waybilldata!$A:$V,2))","v":""},null,null,null,null,{"$f":"IF(ISERROR(MATCH(Frachtsatz12,waybilldata!$A:$A,0)),\"\",VLOOKUP(Frachtsatz12,waybilldata!$A:$V,17))","v":""},null,null,{"$f":"IF(ISERROR(MATCH(Frachtsatz12,waybilldata!$A:$A,0)),\"\",VLOOKUP(Frachtsatz12,waybilldata!$A:$V,22))","v":""},{"$f":"IF(ISERROR(MATCH(Frachtsatz12,waybilldata!$A:$A,0)),\"\",VLOOKUP(Frachtsatz12,waybilldata!$A:$V,15))","v":""},{"$f":"IF(ISERROR(MATCH(Frachtsatz12,waybilldata!$A:$A,0)),\"\",VLOOKUP(Frachtsatz12,waybilldata!$A:$V,18))","v":""},null,{"$f":"IF(ISERROR(MATCH(Frachtsatz12,waybilldata!$A:$A,0)),\"\",VLOOKUP(Frachtsatz12,waybilldata!$A:$V,20))","v":""}]
[]
[null,null,null,"To:",null,"VIA:","From","Lading",null,null,null,null,null,null,null,4,null,null,null,null,null,"To:",null,"VIA:","From","Lading",null,null,null,null,null,null,null,4,null,null,null,null,null,"To:",null,"VIA:","From","Lading",null,null,null,null,null,null,null,4]
[]
[]
[null,null,3,2,1.57,2,3,1.71,1,null,null,null,null,null,null,null,null,null,null,null,3,2,1.57,2,3,1.71,1,null,null,null,null,null,null,null,null,null,null,null,3,2,1.57,2,3,1.71,1]